{"text_format":"1","workbook":"xlsx","n_sheets":21,"sheets":["Cover Page","Contents","Facility Info","Operational Data","Operational Summary","Perf. Form 1","Energy Form 1","Permit Compliance","Improvements","Public Liasion","Residue Quality ","Water","Air (periodic)","Air (CEMS)","HCl","SO2","NOx","TOC","Particulates","CO 95% 10 min","NH3"],"not_rendered":{"charts":7,"images":2,"macros":1,"external_links":0,"defined_names":21,"comments":0,"pivot_tables":0},"unopened":[],"bounds":{"document_bytes":16777216,"sheet_cells":100000,"rows_first":2000,"rows_last":500,"rows_between":2000,"halvings":0,"cell_chars":16384,"cell_head_chars":4096},"cells_cut":0,"cells_raw":0,"read":"whole","date_system":"1900"}

{"sheet":"Cover Page","index":0,"n_rows":53,"n_cols":14,"rows_kept":53,"cut":false,"hidden":false,"merged":[[48,2,48,3],[48,6,48,8],[52,2,52,3],[36,1,36,8],[40,2,40,8],[42,2,42,4],[44,2,44,4],[46,2,46,3],[46,6,46,8],[13,13,18,15],[34,1,34,8],[0,3,5,6],[7,1,23,8],[28,1,28,8],[30,1,30,8],[32,1,32,8]]}
[null,null,null,"Add company logo"]
[null,null,null,null,null,null,null,null,null,null,null,null,null,"Version 20.1 "]
[]
[]
[]
[]
[]
[null,"Add photo"]
[]
[]
[]
[]
[null,null,null,null,null,null,null,null,null,null,null,null,null,"Notes:"]
[null,null,null,null,null,null,null,null,null,null,null,null,null,"This template may require adjustments by individual operators to meet specific reporting requirements as defined in the site Permit(s)"]
[]
[]
[]
[]
[]
[]
[]
[]
[]
[]
[]
[]
[]
[]
[null,"Annual Performance Report 2021"]
[]
[null,"Permit EPR/QP3234SX"]
[]
[null,"Stoke Energy from Waste Facility"]
[]
[null,"MES Environmental Ltd."]
[]
[]
[]
[null,"Year:",2021]
[]
[null,"Address:","MES Environmental Ltd, Sideway, Campbell Road, Stoke, ST4 4DX"]
[]
[null,"Tel: ","01782 412131"]
[]
[null,"Email: ","mes@mesenvironmental.co.uk"]
[]
[null,"Prepared by:","J Purnell",null,null,"Position:","Environmental Consultant "]
[]
[null,"Approved by:","S Danieli",null,null,"Position:","Managing Director"]
[]
[null,"Version:",1]
[]
[null,"Issue Date:","2022-01-31"]

{"sheet":"Contents","index":1,"n_rows":44,"n_cols":11,"rows_kept":44,"cut":false,"hidden":false,"merged":[[43,0,46,9],[36,1,36,6],[37,1,37,6],[38,1,38,6],[39,1,39,6],[40,1,40,6],[41,1,41,6],[35,1,35,6],[21,1,21,6],[22,1,22,6],[23,1,23,6],[26,1,26,6],[27,1,27,6],[28,1,28,6],[29,1,29,6],[30,1,30,6],[31,1,31,6],[34,1,34,6],[20,1,20,6],[9,1,9,6],[10,1,10,6],[11,1,11,6],[12,1,12,6],[13,1,13,6],[14,1,14,6],[15,1,15,6],[16,1,16,6],[17,1,17,6],[18,1,18,6],[19,1,19,6],[4,10,7,14],[8,1,8,6],[3,1,3,6],[4,1,4,6],[5,1,5,6],[6,1,6,6],[7,1,7,6]]}
[{"$f":"+'Cover Page'!$B$29","v":"Annual Performance Report 2021"},null,null,null,{"$f":"+'Cover Page'!$B$33","v":"Stoke Energy from Waste Facility"}]
[]
["Contents",null,null,null,null,null,null,null,null,null,"Notes:"]
[null,"Subject",null,null,null,null,null,"Page ",null,null,"Section references and Page nos. to be inserted"]
[null,"Facility Information",null,null,null,null,null,4,null,null,"Sections and Subjects may require adjustment by individual operators to meet specific reporting requirements as defined in the sites Permit(s)"]
[null,"Operational Data",null,null,null,null,null,5]
[null,"Operational Summary",null,null,null,null,null,7]
[null,"Performance Form 1",null,null,null,null,null,8]
[null,"Energy Form 1",null,null,null,null,null,10]
[null,"Permit Compliance",null,null,null,null,null,11]
[null,"Improvements",null,null,null,null,null,12]
[null,"Public Liaison",null,null,null,null,null,13]
[null,"Residue Quality ",null,null,null,null,null,14]
[null,"Emissions to Water",null,null,null,null,null,15]
[null,"Emissions to Air (periodically monitored)",null,null,null,null,null,16]
[null,"Emissions to Air (continuously monitored)",null,null,null,null,null,17]
[null,"Hydrogen Chloride emissions",null,null,null,null,null,19]
[null,"Sulphur Dioxide emissions",null,null,null,null,null,20]
[null,"Oxides of Nitrogen emissions",null,null,null,null,null,21]
[null,"Total Organic Carbon emissions",null,null,null,null,null,22]
[null,"Particulate Matter emissions",null,null,null,null,null,23]
[null,"Carbon Monoxide emissions",null,null,null,null,null,24]
[null,"Ammonia emissions",null,null,null,null,null,25]
[]
[]
["Version Control"]
["Section","Information",null,null,null,null,null,"Date"]
[]
[]
[]
[]
[]
[]
["Distribution"]
["Copy","Name, Role",null,null,null,null,null,"No."]
[]
[]
[]
[]
[]
[]
[]
[]
["This report is required under the Industrial Emissions Directive’s Article 55(2) requirements on reporting and public information on waste incineration plants and co-incineration plants, which require the operator to produce an annual report on the functioning and monitoring of the plant and make it available to the public. "]

{"sheet":"Facility Info","index":2,"n_rows":22,"n_cols":11,"rows_kept":22,"cut":false,"hidden":false,"merged":[[4,0,17,8],[21,0,53,8],[4,10,13,13],[21,10,30,13]]}
[{"$f":"+'Cover Page'!$B$29","v":"Annual Performance Report 2021"},null,null,null,{"$f":"+'Cover Page'!$B$33","v":"Stoke Energy from Waste Facility"}]
[]
["Plant Description and Design",null,null,null,null,null,null,null,null,null,"Notes:"]
[]
["The installation provides a sustainable method of waste disposal and recovery for the whole of the North Staffordshire conurbation, comprising the districts of Stoke-on- Trent, Newcastle under Lyme, Staffordshire Moorlands the northern area of Stafford and limited quantities from East Staffordshire, Leicestershire and Derbyshire, which would usually be taken to landfill.\n\nWith two combustion lines operating with a combined capacity of up to 24 tonnes per hour, the facility is able to process a maximum of around 210,000 tonnes of waste per year, providing an effective alternative for sending the waste to landfill.\n \nHeat produced during the incineration process is converted to electrical energy by generating steam in high-pressure boilers and expanding the steam through a steam turbine.  When operating at full load, the plant will typically generate around 14.2 MW of electricity and, after satisfying its own power needs, exports approximately 12 MW of electricity to the grid. ",null,null,null,null,null,null,null,null,null,"Include summary of plant design, design capacity, no. of combustion lines, electrical and heat capacity and any other general information that describes the facility, its location and purpose "]
[]
[]
[]
[]
[]
[]
[]
[]
[]
[]
[]
[]
[]
[]
["Summary of Operational Processes and Procedures"]
[]
["The Plant is regulated under the terms of a Permit issued by the Environment Agency (reference QP3234SX) which contains conditions to ensure that the requirements of the Waste Incineration Directive are incorporated and shall be met. \nMES Environmental operates all of its sites under an Integrated Management System certified to ISO 14001:2015 (environmental management), ISO 9001:2015 (quality management), and ISO 45001:2018 (health and safety management).  The company also maintains the globally recognised RoSPA Gold standard award, all of which helps to ensure that the company operates responsibly, safely, and efficiently, with regard to all of its operations. \nIn terms of plant operation, the incineration processes have been designed against the background of a detailed assessment of the prevailing environmental conditions at the site location, and are based upon the Best Available Technology (BAT) as detailed both in the original Authorisation application and the application for the Permit issued under the Pollution Prevention and Control (England and Wales) Regulations.  These include, but are not limited to, the following:\n• Well proven process plant developed specifically for incineration of municipal solid wastes\n• Efficient, comprehensive process control and monitoring systems to ensure optimum conditions for complete combustion of the wastes and to minimise emissions from the processes\n• Operations confined within buildings under slight negative pressure in order to contain and minimise emissions such as dust and odour\n• Qualified and experienced operating and maintenance personnel to implement procedures to ensure that the required high standards are maintained. Operating and Maintenance Procedures are established according to an internationally recognised system of quality assurance\n• Multi-stage high efficiency flue gas cleaning systems comprising deNOx Selective Non-Catalytic Reduction (SNCR) for the removal of oxides of nitrogen, activated carbon and lime semi-dry acid gas scrubbing for controlling acid gas, dioxins/furans and mercury emissions\n• Final stage flue gas abatement for particulate materials using fabric filtration\n• Residues from the combustion process and from the flue gas cleaning system disposed of by approved means, maximising recycling wherever possible\n• Waste water from the process is neutralised and recycled as far as is practicable to minimise the quantities released to sewers\n• Provision of bunds or double skinned vessels for storage of fuel and chemicals in order to prevent accidental and inappropriate discharge to the public sewers and watercourse\n",null,null,null,null,null,null,null,null,null,"Include summary of key processes and procedures such as (but not limited to); waste reception, control rooms, grate, bed and boiler, energy & heat  generation, cooling systems, residue management, emission controls, health and safety systems, maintenance"]

{"sheet":"Operational Data","index":3,"n_rows":65,"n_cols":11,"rows_kept":65,"cut":false,"hidden":false,"merged":[[5,10,6,10],[7,10,18,10],[33,1,38,1],[30,2,30,5],[30,6,30,7],[3,1,3,2],[7,1,20,1],[23,1,26,1],[28,1,29,1],[52,0,56,0]]}
[{"$f":"+'Cover Page'!$B$29","v":"Annual Performance Report 2021"},null,null,null,{"$f":"+'Cover Page'!$B$33","v":"Stoke Energy from Waste Facility"}]
[]
["Operational Data",null,null,null,null,null,null,null,null,null,"Notes:"]
["Plant Size",210000,null,"tonnes pa",0,"MWth",14,"MWe",null,null,"* - RDF to include SRF "]
["No. of combustion lines",2,null,"No. of Turbines:",null,1,null,null,null,null,"** - CHP plants only"]
[null,null,null,null,null,null,null,null,null,null,"2020 updates include;  heat in MWh, water in Litres, NCV in MJ/kg"]
["Waste types received","Unit","Q1","Q2","Q3","Q4","Year Total","%"]
["Household / Local Authority","tonnes",47845.472760612807,37579.0588048231,41620.706235912847,46708.064516129038,{"$f":"SUM(C8:F8)","v":173753.30231747779},{"$f":"IF(G8>0,G8/$G$18,\"-\")","v":0.935737224763729},null,null,"Availabiity Definition: 'the availability of a line is to be calculated by the number of hours the line reported Continuously Monitored emission levels to the Regulator through the calendar year divided by the total number of hours in that year. \nThe overall plant availability is calculated as the Mean of all lines in the plant. For clarity this includes periods of Other Than Normal Operating Conditions (OTNOC) and abnormal operation.'  \n\nRationale: The primary function of an Energy from Waste facility is the disposal of waste. It follows therefore that the availability of a plant is determined by the period of time a facility spends undertaking this activity."]
["Commercial & Industrial ",null,2201.5272393871878,979.94119517689148,2269.2937640871523,6481.9354838709678,{"$f":"SUM(C9:F9)","v":11932.697682522199},6.42627752362709E-2]
["Hazardous ",null,0,0,0,0,0,"-"]
["Clinical",null,0,0,0,0,0,"-"]
["Waste wood (biomass) ",null,0,0,0,0,0,"-"]
["Refuse Derived Fuel * - H'hold/LA",null,0,0,0,0,{"$f":"SUM(C13:F13)","v":0},"-"]
["Refuse Derived Fuel *  - C&I",null,0,0,0,0,0,"-"]
["Other [Please specify]",null,0,0,0,0,0,"-"]
["Other [Please specify]",null,0,0,0,0]
["Other [Please specify]",null,0,0,0,0]
["Total waste received",null,{"$f":"SUM(C8:C17)","v":50046.999999999993},{"$f":"SUM(D8:D17)","v":38558.999999999993},{"$f":"SUM(E8:E17)","v":43890},{"$f":"SUM(F8:F17)","v":53190.000000000007},{"$f":"SUM(G8:G17)","v":185686},1]
["Rejected Waste ",null,0,0,0,0,{"$f":"SUM(C19:F19)","v":0},{"$f":"IF(G19>0,G19/$G$18,\"-\")","v":"-"}]
["Unprocessed waste transferred out",null,0,0,892,0,892,{"$f":"IF(G20>0,G20/$G$18,\"-\")","v":4.8038085800760424E-3}]
["Total waste combusted",null,{"$f":"C18-SUM(C19:C20)","v":50046.999999999993},{"$f":"D18-SUM(D19:D20)","v":38558.999999999993},42998,53190.000000000007,{"$f":"SUM(C21:F21)","v":184794},{"$f":"IF(G21>0,G21/$G$18,\"-\")","v":0.99519619141992399}]
[]
["Energy Usage / Export","Unit","Q1","Q2","Q3","Q4","Year Total","KWh/te"]
["Power Generated","MWh",0,4214,16752,23609,{"$f":"SUM(C24:F24)","v":44575},{"$f":"IF(G24>0,G24*1000/$G$21,\"-\")","v":241.21454159767092}]
["Power Exported",null,0,3551,14098,20134,{"$f":"SUM(C25:F25)","v":37783},{"$f":"IF(G25>0,G25*1000/$G$21,\"-\")","v":204.46010151844757}]
["Power Used on site",null,0,663,2654,3475,{"$f":"SUM(C26:F26)","v":6792},{"$f":"IF(G26>0,G26*1000/$G$21,\"-\")","v":36.75444007922335}]
["Power Imported",null,3673,2200,812,574,7259,{"$f":"IF(G27>0,G27*1000/$G$21,\"-\")","v":39.281578406225307}]
["Parasitic Load","%",{"$f":"IF(C24>0,1-C25/(C24+C27),\"-\")","v":"-"},{"$f":"IF(D24>0,1-D25/(D24+D27),\"-\")","v":0.44636732148425318},{"$f":"IF(E24>0,1-E25/(E24+E27),\"-\")","v":0.1973354588931906},{"$f":"IF(F24>0,1-F25/(F24+F27),\"-\")","v":0.16743166687342348},{"$f":"IF(G24>0,1-G25/(G24+G27),\"-\")","v":0.27107689933248447}]
["Thermal Energy Produced **","MWh",0,0,0,0,{"$f":"SUM(C29:F29)","v":0},{"$f":"IF(G29>0,G29*1000/$G$21,\"-\")","v":"-"}]
["Thermal Energy Exported **",null,0,0,0,0,0,{"$f":"IF(G30>0,G30*1000/$G$21,\"-\")","v":"-"}]
["R1 value",null,"n/a",null,null,null,"Design / Operational / n/a"]
[]
["Waste Disposal & Recovery","Unit","Q1","Q2","Q3","Q4","Year Total","% inputs"]
["APC Residues - produced","tonnes",1913,1207,1578,1846,{"$f":"SUM(C34:F34)","v":6544},{"$f":"IF(G34>0,G34/$G$21,\"-\")","v":3.5412405164669848E-2}]
["IBA - produced",null,8491,6814,8270,9084,32659,0.17673192852581793]
["Metals recycling",null,810,626,881,992,{"$f":"SUM(C36:F36)","v":3309},1.7906425533296536E-2]
["Other",null,0,0,0,0,{"$f":"SUM(C37:F37)","v":0},"-"]
["Other",null,0,0,0,0,0,"-"]
["Other",null,0,0,0,0,0,"-"]
[]
["Raw Material Usage","Unit","Q1","Q2","Q3","Q4","Year Total","kg or Ltr /te"]
["Mains Water","ltrs",6351,5656,6497,7972,{"$f":"SUM(C42:F42)","v":26476},{"$f":"IF(G42>0,G42/$G$21,\"-\")","v":0.14327304999080057}]
["Other Water","ltrs",11385,9406,11850,13834,46475,0.25149626070110503]
["Ammonia","kgs",0,0,0,0,0,"-"]
["Urea","kgs",65000,47000,59000,75000,246000,1.3312120523393616]
["Activated Carbon","kgs",4000,3000,3000,4000,14000,7.5760035498988063E-2]
["Lime / hydrated lime","kgs",658000,449000,512000,687000,2306000,12.478760132904748]
["Fuel oil","ltrs",55000,98200,79000,43528,275728,1.4920830762903556]
["Gas","cf",0,0,0,0,0]
["Other",null,0,0,0,0,0]
[]
["Summary ","Line/Unit","Q1","Q2","Q3","Q4","Year Total",null,null,"Hrs in year "]
["Availability of waste combustion by line, hrs",1,2079,1322.25,2082.5,2182.5,{"$f":"SUM(C53:F53)","v":7666.25},0.87509999999999999,null,8760]
[null,2,2063,1855.25,1616.25,2166.5,7701,0.87909999999999999]
[]
[]
[]
["Overall Availability, mean avg. of all lines, hrs",null,{"$f":"AVERAGE(C53:C54)","v":2071},{"$f":"AVERAGE(D53:D54)","v":1588.75},1849.375,2174.5,{"$f":"AVERAGE(G53:G57)","v":7683.625},{"$f":"AVERAGE(H53:H54)","v":0.87709999999999999}]
["Hours of turbine operations, hrs",1,0,365.5,1644.5,1844,3854,0.44]
[]
[]
["Net Calorific Value of waste","MJ/kg",8.08,7.95,8.31,8.18,{"$f":"AVERAGE(C62:F62)","v":8.1300000000000008},"-"]
["Abnormal Events","qty.",0,1,1,2,4,{"$f":"IF(G63>0,\"yes\",\"no\")","v":"yes"}]
["Abnormal operation","hours",0,1,0.5,1,2.5,{"$f":"+(G64)/J53","v":2.8538812785388126E-4}]
["Permit Breaches","qty.",0,0,0,3,3,{"$f":"IF(G65>0,\"yes\",\"no\")","v":"yes"}]

{"sheet":"Operational Summary","index":4,"n_rows":31,"n_cols":11,"rows_kept":31,"cut":false,"hidden":false,"merged":[[4,0,26,8],[30,0,51,8],[4,10,13,13],[30,10,39,13]]}
[{"$f":"+'Cover Page'!$B$29","v":"Annual Performance Report 2021"},null,null,null,{"$f":"+'Cover Page'!$B$33","v":"Stoke Energy from Waste Facility"}]
[]
["Summary of Plant Operations and Maintenance during the reporting year",null,null,null,null,null,null,null,null,null,"Notes:"]
[]
["• As with 2020, 2021 has been a challenging year with direct and indirect effects of COVID-19. The main challenges were with the availability of parts, service suppliers and our own staff suffering infections or self-isolating due to infection of family members. \nThrough the implementation of stringent control measures, the plant was able to perform well with regard to waste throughput and boilers’ availability.\nDespite of the pandemic, 2021 statutory inspections were regularly performed.\nDuring the outage, additional control measures were introduced in order to protect workers and contractors.\n• In 2021 common issues (i.e. failed valves and pipework) have been the main reason of boiler unavailability in Stoke followed by tube leaks.\nThe overall boiler availability for the year was 88%.\nThe turbine availability has been below expected levels due to various mechanical and electrical problems: the extended turbine blades repair following the failure identified in July 2020, generator DE bearing failure and generator alignment, various oil leaks, controller failure, generator neutral buswork overheating and damaged cables. The overall turbine availability for the year was 44%.\n• Extensive scheduled maintenance was undertaken at the plants annual planned shutdown period:\no Boilers thorough inspections performed. Thin pipes and worn refractory renewed. o Soot blowers and air hammers inspected and maintained.\no Combustion system thoroughly inspected and worn parts replaced. o Auxiliary burners inspected and serviced. o Hydraulic packs serviced.\no Both boiler pressure relief valves serviced. o Common vessels and main valves inspected. o Bag house filters and scrubbers cleaned, inspected and repaired where needed. The program of bags replacement continued. o Ducting and expansion joints inspections and repairs made. o Fly ash and bottom ash conveyors inspected and serviced. o Lime, urea and activated carbon systems cleaned and inspected. o Main fans and pumps inspected and serviced. The main electrical motors have been tested. o Main instrumentation calibrated. o Main electrical systems inspected and tested.  \nSpecific additional works completed during the annual shutdown:\no Steam turbine and generator reinstallation and recommissioning. o Boiler 2 fitted with additional urea injection points.\no Replaced “transition piece” and ash discharger boiler 1 with additional guillotine. Now, both boilers are fitted with new ash dischargers.\no Renewed vapor extraction ducting of both ash dischargers. o Replaced all super heater panels of both boilers. o Upgrade air intake filters of both FD fans. \no Overhauled turbine by-pass control valve. o Replaced main stop valves of both boilers. o DCS historian upgraded. \nSignificant works completed outside the annual shutdown:\no New heat exchanger CR03 fitted. o External repairs and coating to the concrete of the wind shield of the stack. o 11/33 kV transformer inspection. o Testing of the protection relays. o 11 kV and 33 kV switchgears inspection and maintenance. o Refurbishment of the fly ash bucket elevator. o Extensive re-painting works.\n• About health & safety:\no The fume extraction system for use by welders during boiler internal repairs has been improved and consolidated.  o The program of fitting spring-loaded gates nstead of chains on vertical ladders continues. o The installation of additional power supplies to reduce the amount of trailing leads during shutdowns continues. \no Improved guarding of the ash belt conveyors. • Site security has been improved by mean of new CCTV cameras. \n\n",null,null,null,null,null,null,null,null,null,"Include summary of key operational and/or maintenance activity undertaken in the year, such as any major component upgrades and/or replacements "]
[]
[]
[]
[]
[]
[]
[]
[]
[]
[]
[]
[]
[]
[]
[]
[]
[]
[]
[]
[]
[]
[]
[]
["Summary of Residue Handling for the reporting year"]
[]
["There are two main sources of residue that arise from the operation of the plant;  Incinerator Bottom ash (IBA) (which also includes ferrous metals discharged within the ash), and residues from the flue gas treatment system - known as Air Pollution Control residue (APCr).\n\nResidues from the flue gas treatment process (APCr) are discharged into an enclosed system which feed into double-skinned heavy-duty bags prior to removal from site for controlled treatment and disposal.  These residues account for around 5% of the total weight of all refuse processed by the facility.\n\nThe bottom ash produced by the site represents around 10% of the original volume of the refuse processed, and around 20% of its weight.  Bottom ash residues are discharged from the lower end of each grate into a water filled ash discharger, where it is quenched and then ejected onto a conveyor system. Larger items are screened out and ferrous metals are removed via magnetic separation.  \nThe resulting material is stored in the storage bunkers prior to removal from site for recycling - the storage capacity for bottom ash residues and separated ferrous metals is sufficient to ensure 4 days storage. Collections for delivery to further processing or treatment sites are made on Mondays to Fridays and are scheduled to ensure sufficient storage capacity is maintained at all times. Collections are available at weekends if operational conditions require this facility.\nBottom ash is now widely used in the UK and Europe as a substitute for valuable primary aggregate materials in the construction of roads and embankments.  Bottom ash from MES Environmental is currently being reprocessed, with additional ferrous and trace metals being removed, and the remaining material being further processed into usable aggregate in a zero to landfill process.",null,null,null,null,null,null,null,null,null,"Include in here a summary of residue handling regimes and destinations "]

{"sheet":"Perf. Form 1","index":5,"n_rows":54,"n_cols":10,"rows_kept":54,"cut":false,"hidden":false,"merged":[[47,0,47,1],[49,0,49,9],[50,0,51,9],[38,0,38,9],[39,0,40,9],[43,0,43,1],[43,2,43,9],[45,0,45,1],[46,0,46,1],[36,0,36,3],[36,4,36,5],[36,7,36,8],[37,0,37,3],[37,4,37,5],[37,7,37,8],[34,0,34,3],[34,4,34,5],[34,7,34,8],[35,0,35,3],[35,4,35,5],[35,7,35,8],[31,0,31,3],[31,7,31,8],[32,0,32,3],[32,4,32,5],[32,7,32,8],[33,0,33,3],[33,4,33,5],[33,7,33,8],[23,0,23,3],[23,4,23,5],[23,6,23,7],[23,8,23,9],[25,0,25,9],[26,0,28,9],[21,0,21,1],[21,2,21,3],[21,4,21,5],[21,6,21,7],[21,8,21,9],[22,0,22,3],[22,4,22,5],[22,6,22,7],[22,8,22,9],[19,0,19,1],[19,2,19,3],[19,4,19,5],[19,6,19,7],[19,8,19,9],[20,0,20,1],[20,2,20,3],[20,4,20,5],[20,6,20,7],[20,8,20,9],[17,0,17,1],[17,2,17,3],[17,4,17,5],[17,6,17,7],[17,8,17,9],[18,0,18,1],[18,2,18,3],[18,4,18,5],[18,6,18,7],[18,8,18,9],[15,0,15,1],[15,2,15,3],[15,4,15,5],[15,6,15,7],[15,8,15,9],[16,0,16,9],[13,0,13,1],[13,2,13,3],[13,4,13,5],[13,6,13,7],[13,8,13,9],[14,0,14,3],[14,4,14,5],[14,6,14,7],[14,8,14,9],[11,0,11,1],[11,2,11,3],[11,4,11,5],[11,6,11,7],[11,8,11,9],[12,0,12,1],[12,2,12,3],[12,4,12,5],[12,6,12,7],[12,8,12,9],[9,0,9,9],[10,0,10,1],[10,2,10,3],[10,4,10,5],[10,6,10,7],[10,8,10,9],[2,0,2,4],[2,6,2,8],[3,1,3,4],[5,3,5,4],[5,6,5,7],[8,0,8,1],[8,2,8,3],[8,4,8,5],[8,6,8,7],[8,8,8,9]]}
[{"$f":"+'Cover Page'!C39","v":2021}," Annual Reporting Performance Form 1"]
[]
[{"$f":"+'Cover Page'!B31","v":"Permit EPR/QP3234SX"},null,null,null,null,"Operator: ","MES Environmental"]
["Facility:",{"$f":"+'Cover Page'!B33:I33","v":"Stoke Energy from Waste Facility"},null,null,null,"Form:","Performance 1"]
[]
["Reporting  Period from: ",null,null,"2021-01-01",null,"to:","2021-12-31"]
[]
[{"$f":"+A1","v":2021},"Annual Reporting of Waste Disposal and Recovery"]
["Waste Description",null,"Disposal Route(s)",null,"Disposal Tonnes",null,"Recovery Tonnes",null,"% / tonne of waste incinerated"]
["1) Hazardous Wastes"]
["APC Residues",null,"D13",null,{"$f":"'Operational Data'!G34","v":6544},null,null,null,{"$f":"IF((E11+G11)>0,(E11+G11)/'Operational Data'!$G$21, \"-\")","v":3.5412405164669848E-2}]
["IBA",null,null,null,null,null,null,null,{"$f":"IF((E12+G12)>0,(E12+G12)/'Operational Data'!$G$21, \"-\")","v":"-"}]
[null,null,null,null,null,null,null,null,{"$f":"IF((E13+G13)>0,(E13+G13)/'Operational Data'!$G$21, \"-\")","v":"-"}]
[null,null,null,null,null,null,null,null,{"$f":"IF((E14+G14)>0,(E14+G14)/'Operational Data'!$G$21, \"-\")","v":"-"}]
["Total Hazardous Waste",null,null,null,{"$f":"SUM(E11:F14)","v":6544},null,{"$f":"SUM(G11:H14)","v":0},null,{"$f":"IF((E15+G15)>0,(E15+G15)/'Operational Data'!$G$21, \"-\")","v":3.5412405164669848E-2}]
[]
["2) Non-Hazardous Wastes"]
["IBA",null,"R04",null,null,null,{"$f":"'Operational Data'!G35","v":32659},null,{"$f":"IF((E18+G18)>0,(E18+G18)/'Operational Data'!$G$21, \"-\")","v":0.17673192852581793}]
["Ferrous Metal",null,"R04",null,null,null,{"$f":"'Operational Data'!G36","v":3309},null,{"$f":"IF((E19+G19)>0,(E19+G19)/'Operational Data'!$G$21, \"-\")","v":1.7906425533296536E-2}]
["Process Water",null,null,null,3706,null,null,null,{"$f":"IF((E20+G20)>0,(E20+G20)/'Operational Data'!$G$21, \"-\")","v":2.0054763682803553E-2}]
[null,null,null,null,null,null,null,null,{"$f":"IF((E21+G21)>0,(E21+G21)/'Operational Data'!$G$21, \"-\")","v":"-"}]
[null,null,null,null,null,null,null,null,{"$f":"IF((E22+G22)>0,(E22+G22)/'Operational Data'!$G$21, \"-\")","v":"-"}]
["Total Non-Hazardous Waste",null,null,null,{"$f":"SUM(E18:F22)","v":3706},null,{"$f":"SUM(G18:H22)","v":35968},null,{"$f":"IF((E23+G23)>0,(E23+G23)/'Operational Data'!$G$21, \"-\")","v":0.21469311774191802}]
["TOTAL WASTE",null,null,null,{"$f":"+E23+E15","v":10250},null,{"$f":"+G23+G15","v":35968},null,{"$f":"IF((E24+G24)>0,(E24+G24)/'Operational Data'!$G$21, \"-\")","v":0.25010552290658788}]
[]
["Operator’s comments :"]
[]
[]
[]
[]
[{"$f":"+A1","v":2021},"Annual Reporting of Water and Other Raw Material Usage"]
["Raw Material",null,null,null,"Usage",null,"Unit","Specific Useage",null,"Unit"]
["Mains Water",null,null,null,{"$f":"+'Operational Data'!G42","v":26476},null,"m3",{"$f":"IF(E33>0,E33/'Operational Data'!$G$21,\"-\")","v":0.14327304999080057},null,"m3/te"]
["Total Water",null,null,null,{"$f":"+'Operational Data'!G43+'Operational Data'!G42","v":72951},null,"m3",{"$f":"IF(E34>0,E34/'Operational Data'!$G$21,\"-\")","v":0.39476931069190557},null,"m3/te"]
["Urea / Ammonia",null,null,null,{"$f":"'Operational Data'!G45","v":246000},null,"kg",{"$f":"IF(E35>0,E35/'Operational Data'!$G$21,\"-\")","v":1.3312120523393616},null,"kg/te"]
["Activated Carbon",null,null,null,{"$f":"+'Operational Data'!G46","v":14000},null,"kg",{"$f":"IF(E36>0,E36/'Operational Data'!$G$21,\"-\")","v":7.5760035498988063E-2},null,"kg/te"]
["Lime / hydrated lime / Sodium Bicarb.",null,null,null,{"$f":"+'Operational Data'!G47","v":2306000},null,"kg",{"$f":"IF(E37>0,E37/'Operational Data'!$G$21,\"-\")","v":12.478760132904748},null,"kg/te"]
[]
["Operator’s comments :"]
[]
[]
[]
[{"$f":"+A31","v":2021},"Annual Reporting of other performance indicators "]
["Parameter",null,"Results by Line"]
[null,null,"A1","A2","A3","A4","A5",null,"Turbine 1","Turbine 2"]
["Operating hours for the year, hours",null,{"$f":"'Operational Data'!G53","v":7666.25},{"$f":"'Operational Data'!G54","v":7701},null,null,null,null,{"$f":"'Operational Data'!G59","v":3854}]
["Number of periods of abnormal operation, qty.",null,2,2]
["Cumulative hours of abnormal operation for this year, hours",null,1.5,1]
[]
["Operator’s comments :"]
[]
[]
[]
["Signed: ","J Purnell",null,null,null,null,"Date:","2022-01-31"]

{"sheet":"Energy Form 1","index":6,"n_rows":29,"n_cols":8,"rows_kept":29,"cut":false,"hidden":false,"merged":[[15,0,15,2],[15,3,15,4],[15,6,15,8],[17,0,17,8],[18,0,24,8],[13,0,13,2],[13,3,13,4],[13,6,13,8],[14,0,14,2],[14,3,14,4],[14,6,14,8],[11,0,11,2],[11,3,11,4],[11,6,11,8],[12,0,12,2],[12,3,12,4],[12,6,12,8],[9,0,9,2],[9,3,9,4],[9,6,9,8],[10,0,10,2],[10,3,10,4],[10,6,10,8],[2,6,2,8],[4,1,4,4],[6,3,6,4],[6,6,6,7],[8,0,8,2],[8,3,8,4],[8,6,8,8]]}
[{"$f":"+'Cover Page'!C39","v":2021}," Annual Reporting of Energy Usage/Export"]
[]
[{"$f":"+'Cover Page'!B31","v":"Permit EPR/QP3234SX"},null,null,null,null,"Operator: ","MES Environmental"]
[]
["Facility:",{"$f":"+'Cover Page'!B33:I33","v":"Stoke Energy from Waste Facility"},null,null,null,"Form:","Energy 1"]
[]
["Reporting  Period from: ",null,null,{"$f":"+'Perf. Form 1'!D6:E6","v":"2021-01-01"},null,"to:",{"$f":"+'Perf. Form 1'!G6:H6","v":"2021-12-31"}]
[]
["Energy Source",null,null,"Energy Usage",null,"Unit","Specific Useage (KWh/tonne incinerated"]
["Electricity Produced",null,null,{"$f":"+'Operational Data'!G24","v":44575},null,"MWh",{"$f":"+'Operational Data'!H24","v":241.21454159767092}]
["Electricity Imported   ",null,null,{"$f":"+'Operational Data'!G27","v":7259},null,"MWh",{"$f":"+'Operational Data'!H27","v":39.281578406225307}]
["Electricity Exported",null,null,{"$f":"+'Operational Data'!G25","v":37783},null,"MWh",{"$f":"+'Operational Data'!H25","v":204.46010151844757}]
["Gas Oil",null,null,{"$f":"'Operational Data'!G48*0.00089013","v":245.43376464000002},null,"tonnes"]
["Steam/hot water exported",null,null,{"$f":"+'Operational Data'!G30","v":0},null,"GWh",{"$f":"+'Operational Data'!H30","v":"-"}]
[]
[]
[]
["Operator’s comments :"]
[]
[]
[]
[]
[]
[]
[]
[]
[]
[]
["Signed: ","J Purnell",null,null,null,null,"Date:","2022-01-31"]

{"sheet":"Permit Compliance","index":7,"n_rows":40,"n_cols":12,"rows_kept":40,"cut":false,"hidden":false,"merged":[[25,4,25,6],[26,4,26,6],[27,4,27,6],[22,7,22,8],[23,7,23,8],[24,7,24,8],[25,7,25,8],[26,7,26,8],[27,7,27,8],[32,0,32,10],[18,0,18,10],[37,1,37,3],[37,4,37,6],[37,7,37,9],[33,1,33,3],[33,4,33,6],[33,7,33,9],[34,1,34,3],[34,4,34,6],[34,7,34,9],[29,1,29,3],[29,4,29,6],[29,7,29,9],[30,1,30,3],[30,4,30,6],[38,1,38,3],[38,4,38,6],[38,7,38,9],[35,1,35,3],[35,4,35,6],[35,7,35,9],[36,1,36,3],[36,4,36,6],[36,7,36,9],[30,7,30,9],[21,1,21,3],[21,4,21,6],[21,7,21,9],[28,1,28,3],[28,4,28,6],[28,7,28,9],[22,1,22,3],[23,1,23,3],[24,1,24,3],[25,1,25,3],[26,1,26,3],[27,1,27,3],[22,4,22,6],[23,4,23,6],[24,4,24,6],[19,1,19,3],[19,4,19,6],[19,7,19,9],[20,1,20,3],[20,4,20,6],[20,7,20,9],[16,2,16,4],[16,5,16,8],[15,2,15,4],[15,5,15,8],[16,0,16,1],[13,5,13,8],[14,0,14,1],[14,2,14,4],[14,5,14,8],[15,0,15,1],[7,0,7,1],[7,2,7,8],[8,0,8,1],[8,2,8,4],[8,5,8,8],[8,11,17,14],[39,4,39,8],[9,0,9,1],[9,2,9,4],[9,5,9,8],[10,0,10,1],[10,2,10,4],[10,5,10,8],[11,0,11,1],[11,2,11,4],[11,5,11,8],[12,0,12,1],[12,2,12,4],[12,5,12,8],[13,0,13,1],[13,2,13,4]]}
[{"$f":"+'Cover Page'!$B$29","v":"Annual Performance Report 2021"},null,null,null,{"$f":"+'Cover Page'!$B$33","v":"Stoke Energy from Waste Facility"}]
[]
["Summary of Permit Compliance"]
[]
["Compliance with permit limits for continuously monitored pollutants"]
[]
["The plant met its emission limits as shown in the table below:"]
["Substance",null,"Percentage time compliant during operation",null,null,null,null,null,null,null,null,"Notes:"]
[null,null,"Half-hourly limit",null,null,"Daily limit",null,null,null,null,null,"Report to 2 decimal places, i.e. xx.xx%\n\nPlease provide a brief summary of each notification or non-compliance in the table (rather than just referring to notifications that were sent to the Regulator).  \n\n"]
["Particulates",null,1,null,null,1]
["Oxides of nitrogen",null,1,null,null,1]
["Sulphur dioxide",null,1,null,null,1]
["Carbon monoxide",null,1,null,null,1]
["Total organic carbon",null,1,null,null,1]
["Hydrogen chloride",null,0.99990000000000001,null,null,0.99450000000000005]
["Hydrogen fluoride",null,1,null,null,1]
["Average",null,1,null,null,0.99919999999999998]
[]
["Summary of any notifications or non-compliances under the permit"]
["Date","Summary of notification or non-compliance [including Line/Reference]",null,null,"Reason ",null,null,"Measures taken to prevent reoccurrence"]
["2021-11-25","A2, HCl, Daily limit ",null,null,"Equipment failure ",null,null,"Repairs made "]
["2021-12-20","A1, HCl, half hourly limit ",null,null,"Poor or contam. Waste ",null,null,"Increased lime flow "]
["2021-12-20","A1, HCl, Daily limit ",null,null,"same event as above ",null,null,"same event as above "]
[]
[]
[]
[]
[]
[]
[]
[]
[]
["Summary of any complaints received and actions to taken to resolve them."]
["Date","Summary of complaint [including Line/Reference]",null,null,"Reason *",null,null,"Measures taken to prevent reoccurrence"]
[]
[]
[]
[]
[]
[null,null,null,null,"* including whether substantiated by the operator or the EA"]

{"sheet":"Improvements","index":8,"n_rows":39,"n_cols":5,"rows_kept":39,"cut":false,"hidden":false,"merged":[[37,0,37,9],[38,0,47,9],[4,0,4,9],[5,0,13,9],[15,0,15,9],[16,0,24,9],[26,0,26,9],[27,0,35,9]]}
[{"$f":"+'Cover Page'!$B$29","v":"Annual Performance Report 2021"},null,null,null,{"$f":"+'Cover Page'!$B$33","v":"Stoke Energy from Waste Facility"}]
[]
["Summary of Plant Improvements"]
[]
["Summary of any efficiency improvements that have been completed within the year."]
["• LED lamp replacement is an ongoing project.\n• The enhanced cleaning regime on the ACC is a consolidated practice.\n• The repairs to the turbine to reduce air ingress on the vacuum side and on the exhaust duct plus a robust programme of air leak detection and repair resulted in an increase in power output and exported energy. \n• Purchased a ultrasonic cleaning machine for the lime discs to improve the efficiency of the lime slurry injection. The ultrasonic machine will be commissioned at the beginning of 2022 to reduced use of chemicals plus a significant improvement in the life expectancy of the lime turbine discs.\nPurchased one new lime turbine to improve the reliability and efficiency of the system.\nImplemented 24 holes lime discs for a better lime slurry distribution.\n• Continued the replacement program of damaged lagging.\n"]
[]
[]
[]
[]
[]
[]
[]
[]
[]
["Summary of any permit improvement conditions that have been completed within the year and the resulting environmental benefits."]
["All permit improvement conditions were completed prior to 2020."]
[]
[]
[]
[]
[]
[]
[]
[]
[]
["Summary of any changes to the plant or operating techniques which required a variation to the permit and a summary of the resulting environmental impact."]
["No variations to the permit were required or sought during 2020."]
[]
[]
[]
[]
[]
[]
[]
[]
[]
["Summary of any other improvements made to the plant or planned to be made and a summary of the resulting environmental benefits."]
["Additional improvements that have been made to the plant include:\n• Completed boiler 2 combustion control integration and achieved more stable operating conditions. Both boilers have now new combustion control system. \n• Replaced PLC of the lime injection system boiler 1. Both boilers have now new PLC.\nThe lime preparation tanks have been fitted with upgraded microwave level sensors.\nNew lime silo protection system installed. • Replaced frequency converter of cross travel and long travel of crane 1. The replacement of the frequency converter of cross travel and long travel of crane 2 is planned for the beginning of 2022.  • Two dust probes have been replaced with new upgraded units.\nFollowing the Environmental Agency recommendation, CO2 and N2O analysers have been installed. Calibration of gas flow meters will be tentatively performed in 2022 together with QAL2. Replaced  CDAS PCs.\nInstalled spare fibre optic link from the analysers to the CDAS PCs.\n• Implemented reinforced bags for the bag house filters.\n• In-house NOx reduction test in the view of the implementation of the Best Available Technology.\n• A few areas of both boiler have been Hastelloy cladded with HVTS (High velocity Thermal Spray) to improve the reliability of the units.\n• Installation of turbine bearings, waste bunker and tipping hall early warning fire detection systems.\n• The inspection program of the underground drains continues.  • Wells have been installed and underground water investigation carried out. Underground gas and soil sampling has been performed.\n"]

{"sheet":"Public Liasion","index":9,"n_rows":29,"n_cols":5,"rows_kept":29,"cut":false,"hidden":false,"merged":[[23,0,24,1],[23,2,24,9],[25,0,26,1],[25,2,26,9],[28,0,28,9],[17,0,18,1],[17,2,18,9],[19,0,20,1],[19,2,20,9],[21,0,22,1],[21,2,22,9],[16,0,16,1],[16,2,16,9],[5,0,5,1],[5,2,5,9],[6,0,7,1],[6,2,7,9],[8,0,9,1],[8,2,9,9],[10,0,11,1],[10,2,11,9],[12,0,13,1],[12,2,13,9],[15,0,15,9]]}
[{"$f":"+'Cover Page'!$B$29","v":"Annual Performance Report 2021"},null,null,null,{"$f":"+'Cover Page'!$B$33","v":"Stoke Energy from Waste Facility"}]
[]
["Details of Public & Stakeholder Liasion"]
[]
["Summary of events held during the reporting year."]
["Date",null,"Description"]
["Across 2021",null,"MESE conducts monthly meetings with its core stakeholders in order discuss operational, health and safety, and environmental performance."]
[]
[]
[]
[]
[]
[]
[]
[]
["List of events planned for next year"]
["Date",null,"Description"]
[2022,null,"MESE will continue to meet with its core stakeholders on a monthly basis."]
[]
[]
[]
[]
[]
[]
[]
[]
[]
[]
["If you wish to be involved in the public liasion programme, please contact _________________"]

{"sheet":"Residue Quality ","index":10,"n_rows":36,"n_cols":6,"rows_kept":36,"cut":false,"hidden":false,"merged":[[35,0,40,6],[32,3,32,4],[34,0,34,6],[27,0,28,1],[29,0,29,1],[30,0,30,1],[31,0,31,1],[32,0,32,1],[29,3,29,4],[30,3,30,4],[29,5,29,6],[30,5,30,6],[31,5,31,6],[32,5,32,6],[20,0,21,1],[20,2,21,6],[22,0,23,1],[22,2,23,6],[31,3,31,4],[27,2,28,2],[28,3,28,4],[28,5,28,6],[27,3,27,6],[26,0,26,6],[5,0,6,6],[7,0,8,6],[9,0,10,6],[14,0,15,1],[14,2,15,6],[16,0,17,1],[16,2,17,6],[18,0,19,1],[18,2,19,6],[12,0,12,6],[13,0,13,1],[13,2,13,6]]}
[{"$f":"+'Cover Page'!$B$29","v":"Annual Performance Report 2021"},null,null,null,{"$f":"+'Cover Page'!$B$33","v":"Stoke Energy from Waste Facility"}]
[]
["Residue Quality Monitoring Requirements"]
[]
["Summary of monitoring undertaken and compliance"]
["24 sample IBA monitoring scheme undertaken as per the ESA protocol"]
[]
["2 IBA samples taken direct from each unit's ash discharger and subjected to full hazard assessment against WM3 - both samples found to be below the hazard thresholds for all applicable hazard categories"]
[]
["Quarterly APCr monitoring performed. "]
[]
[]
["Commentary on any specific events"]
["Date & Event",null,"Description"]
[]
[]
[]
[]
[]
[]
[]
[]
[]
[]
[]
[]
["Residue Quality Monitoring Results"]
["Parameter (unit) ",null,"Limit","Normal Operation "]
[null,null,null,"Bottom ash  ",null,"APC Residues"]
["Loss on Ignition (average %)",null,"<5%",6.25]
["Total Organic Carbon (average %)",null,"<3%",0.67]
["No. of Assessments Undertaken",null,"---",24,null,8]
["No. of Hazardous Results",null,"---",0]
[]
["Comments :"]
["The Loss on Ignition and TOC values above represent the average observed over all samples taken during 2021"]

{"sheet":"Water","index":11,"n_rows":29,"n_cols":10,"rows_kept":29,"cut":false,"hidden":false,"merged":[[29,0,29,2],[29,3,29,5],[26,0,26,2],[26,3,26,5],[27,0,27,2],[27,3,27,5],[28,0,28,2],[28,3,28,5],[23,0,23,2],[23,3,23,5],[24,0,24,2],[24,3,24,5],[25,0,25,2],[25,3,25,5],[21,0,21,9],[22,0,22,2],[22,3,22,5],[14,0,15,1],[14,2,15,9],[16,0,17,1],[16,2,17,9],[18,0,19,1],[18,2,19,9],[5,0,6,9],[7,0,8,9],[9,0,10,9],[12,0,12,9],[13,0,13,1],[13,2,13,9]]}
[{"$f":"+'Cover Page'!$B$29","v":"Annual Performance Report 2021"},null,null,null,{"$f":"+'Cover Page'!$B$33","v":"Stoke Energy from Waste Facility"}]
[]
["Emissions to Water"]
[]
["Summary of monitoring undertaken and compliance"]
["Annual sample taken and analysed.  All results below limits given in discharge consent.  "]
[]
["Waste water arising from the process is neutralised and recycled as far as is practicible in order to minimise the quantity released to sewer."]
[]
[]
[]
[]
["Commentary on any specific events"]
["Date & Event",null,"Description"]
[]
[]
[]
[]
[]
[]
[]
["Emissions to Water / Sewer"]
["Parameter",null,null,"Monitoring Frequency",null,null,"Limit","Target","Max.","Average"]
["pH",null,null,"Continuous",null,null,"6 - 10","6 - 10",10.4,8.9]
["Total Suspended Solids (TSS)",null,null,"Annual",null,null,"400 mg/L","<400 mg/L",21,21]
["Chemical Oxygen Demand (COD)",null,null,"Annual",null,null,"600 mg/L","<600 mg/L",21,21]
["Sulphate",null,null,"Annual",null,null,"1000 mg/L","<1000 mg/L",69.8,69.8]
["Phosphorus",null,null,"Annual",null,null,"25 mg/L","<25 mg/L",0.13,0.13]
["Oil",null,null,"Annual",null,null,"nil","nil","nil","nil"]

{"sheet":"Air (periodic)","index":12,"n_rows":39,"n_cols":13,"rows_kept":39,"cut":false,"hidden":false,"merged":[[18,3,18,4],[27,3,27,4],[33,3,33,4],[19,3,19,4],[20,3,20,4],[21,3,21,4],[22,3,22,4],[23,3,23,4],[24,3,24,4],[31,3,31,4],[25,3,25,4],[26,3,26,4],[28,3,28,4],[13,3,13,4],[14,3,14,4],[15,3,15,4],[16,3,16,4],[17,3,17,4],[38,0,38,9],[19,0,19,1],[20,0,20,1],[21,0,21,1],[34,3,34,4],[35,3,35,4],[33,0,33,1],[34,0,34,1],[35,0,35,1],[36,0,36,1],[24,0,24,1],[32,3,32,4],[39,0,40,9],[25,0,25,1],[26,0,26,1],[22,0,22,1],[23,0,23,1],[37,0,37,1],[27,0,27,1],[28,0,28,1],[29,0,29,1],[30,0,30,1],[31,0,31,1],[32,0,32,1],[37,3,37,4],[29,3,29,4],[30,3,30,4],[36,3,36,4],[16,0,16,1],[17,0,17,1],[18,0,18,1],[13,0,13,1],[14,0,14,1],[15,0,15,1],[12,0,12,1],[11,3,11,4],[12,3,12,4],[9,0,10,1],[9,5,9,9],[9,3,10,4],[9,2,10,2],[5,12,8,15],[9,12,11,15],[8,0,8,9],[5,0,6,9],[11,0,11,1]]}
[{"$f":"+'Cover Page'!$B$29","v":"Annual Performance Report 2021"},null,null,null,{"$f":"+'Cover Page'!$B$33","v":"Stoke Energy from Waste Facility"}]
[]
["Emissions to Air (periodically monitored)"]
[]
["Summary of monitoring undertaken, standards used and compliance",null,null,null,null,null,null,null,null,null,null,null,"Notes:"]
[null,null,null,null,null,null,null,null,null,null,null,null,"Template may require adjustment for any bespoke monitoring requirements of permit. "]
[]
[]
["Results of emissions to air that are periodically monitored"]
["Substance",null,"Ref. Period","Emission Limit Value",null,"Average",null,null,null,null,null,null,"User to add additional tables as necessary, depending on whether quarterly or bi-annual reporting is required for the compliance year"]
[null,null,null,null,null,"A1","A2","A3","A4","A5"]
["Hydrogen fluoride",null,"1 hr","2 mg/m3",null,0.17025000000000001,2.1249999999999998E-2]
["Cd and Th and their compounds",null,"6-8hrs","0.05 mg/m3",null,1.4499999999999999E-3,1.5499999999999997E-3]
["Hg and its compounds",null,"6-8hrs","0.05 mg/m3",null,4.9750000000000003E-3,4.4250000000000001E-3]
["Sb, As, Pb, Cr, Co, Cu, Mn, Ni, V and their compounds",null,"6-8hrs","0.5 mg/m3",null,5.1150000000000001E-2,0.12634999999999999]
["Dioxins & Furans (I-TEQ)",null,"6-8hrs","0.1 ng/m3",null,6.3E-2,6.4549999999999996E-2]
["PCBs (WHO-TEQ Humans / Mammals)",null,"6-8hrs","None set ng/m3",null,5.3600000000000002E-3,4.5999999999999999E-3]
["PCBs (WHO-TEQ Fish)",null,"6-8hrs","None set ng/m3",null,2.6000000000000003E-4,2.0000000000000001E-4]
["PCBs (WHO-TEQ Birds)",null,"6-8hrs","None set ng/m3",null,9.4000000000000004E-3,4.7899999999999998E-2]
["Dioxins & Furans (WHO-TEQ Humans / Mammals)",null,"6-8hrs","None set ng/m3",null,6.0250000000000005E-2,6.1450000000000005E-2]
["Dioxins & Furans (WHO-TEQ Fish)",null,"6-8hrs","None set ng/m3",null,6.615E-2,6.9699999999999998E-2]
["Dioxins & Furans (WHO-TEQ Birds)",null,"6-8hrs","None set ng/m3",null,0.10225000000000001,8.7400000000000005E-2]
["Anthanthrene",null,"6-8hrs","None set µg/m3",null,6.5000000000000006E-3,8.9499999999999996E-3]
["Benzo(a)anthracene",null,"6-8hrs","None set µg/m3",null,7.9500000000000005E-3,8.9499999999999996E-3]
["Benzo(a)pyrene",null,"6-8hrs","None set µg/m3",null,6.5000000000000006E-3,7.9000000000000008E-3]
["Benzo(b)fluoranthene",null,"6-8hrs","None set µg/m3",null,6.5000000000000006E-3,7.9000000000000008E-3]
["Benzo(b)naptho(2,1-d) thiophene",null,"6-8hrs","None set µg/m3",null,1.4999999999999999E-2,8.9499999999999996E-3]
["Benzo(c)phenanthrene",null,"6-8hrs","None set µg/m3",null,6.5000000000000006E-3,7.9000000000000008E-3]
["Benzo(ghi)perylene",null,"6-8hrs","None set µg/m3",null,1.295E-2,8.9499999999999996E-3]
["Benzo(k)fluoranthene",null,"6-8hrs","None set µg/m3",null,6.5000000000000006E-3,7.9000000000000008E-3]
["Cholanthrene",null,"6-8hrs","None set µg/m3",null,6.5000000000000006E-3,7.9000000000000008E-3]
["Chrysene",null,"6-8hrs","None set µg/m3",null,1.4999999999999999E-2,0.01]
["Cyclopenta(cd)pyrene",null,"6-8hrs","None set µg/m3",null,6.5000000000000006E-3,1.4999999999999999E-2]
["Dibenzo(ai)pyrene",null,"6-8hrs","None set µg/m3",null,6.5000000000000006E-3,7.9000000000000008E-3]
["Dibenzo(ah)anthracene",null,"6-8hrs","None set µg/m3",null,8.5500000000000003E-3,7.9000000000000008E-3]
["Fluoranthene",null,"6-8hrs","None set µg/m3",null,0.375,0.26]
["Indeno(123-cd) pyrene",null,"6-8hrs","None set µg/m3",null,7.9500000000000005E-3,7.9000000000000008E-3]
["Naphthalene",null,"6-8hrs","None set µg/m3",null,0.95500000000000007,1.5649999999999999]
["Comments :"]

{"sheet":"Air (CEMS)","index":13,"n_rows":28,"n_cols":16,"rows_kept":28,"cut":false,"hidden":false,"merged":[[26,0,26,12],[28,0,29,12],[13,0,14,0],[5,0,6,12],[7,0,8,12],[10,0,10,12],[11,0,12,0],[11,2,12,2],[11,1,12,1],[11,3,11,4],[11,5,11,6],[11,7,11,8],[11,9,11,10],[11,11,11,12]]}
[{"$f":"+'Cover Page'!$B$29","v":"Annual Performance Report 2021"},null,null,null,null,null,null,null,{"$f":"+'Cover Page'!$B$33","v":"Stoke Energy from Waste Facility"}]
[]
["Emissions to Air (continously monitored)"]
[null,null,null,null,null,null,null,null,null,null,null,null,null,null,null,"Notes:"]
["Summary of monitoring undertaken, standards used and compliance",null,null,null,null,null,null,null,null,null,null,null,null,null,null,"Template may require adjustment for any bespoke monitoring requirements of permit"]
["The substances below are continuously monitored by the plant.  Average and maximum emissions are recorded below.",null,null,null,null,null,null,null,null,null,null,null,null,null,null,"Report to 2 decimal places, i.e. xx.xx%"]
[]
[]
[]
[]
["Results of emissions to air that are continuously monitored (maximum and average values for each line)"]
["Substance","Reference Period","Emission Limit Value","A1",null,"A2",null,"A3",null,"A4",null,"A5"]
[null,null,null,"Max.","Avg.","Max.","Avg.","Max.","Avg.","Max.","Avg.","Max.","Avg."]
["Oxides of nitrogen","Daily mean","200 mg/m3 ",{"$f":"NOx!O19","v":183},{"$f":"NOx!N19","v":176.58333333333334},{"$f":"NOx!O34","v":176},{"$f":"NOx!N34","v":168.33333333333334}]
[null,"½ hourly mean","400 mg/m3 ",{"$f":"NOx!M19","v":383},{"$f":"NOx!L19","v":176.58333333333334},{"$f":"NOx!M34","v":264},{"$f":"NOx!L34","v":168.33333333333334}]
["Particulates","Daily mean","10 mg/m3",{"$f":"Particulates!O19","v":9},{"$f":"Particulates!N19","v":3},{"$f":"Particulates!O34","v":7},{"$f":"Particulates!N34","v":1.3333333333333333}]
[null,"½ hourly mean","30 mg/m3 ",{"$f":"Particulates!M19","v":55},{"$f":"Particulates!L19","v":3},{"$f":"Particulates!M34","v":18},{"$f":"Particulates!L34","v":1.3333333333333333}]
["Total Organic Carbon ","Daily mean","10 mg/m3 ",{"$f":"TOC!O19","v":1},{"$f":"TOC!N19","v":0},{"$f":"TOC!O34","v":3},{"$f":"TOC!N34","v":1.0833333333333333}]
[null,"½ hourly mean","20 mg/m3 ",{"$f":"TOC!M19","v":17},{"$f":"TOC!L19","v":0},{"$f":"TOC!M34","v":14},{"$f":"TOC!L34","v":1.0833333333333333}]
["Hydrogen chloride ","Daily mean","10 mg/m3 ",{"$f":"HCl!O19","v":21},{"$f":"HCl!N19","v":7.416666666666667},{"$f":"HCl!O34","v":13},{"$f":"HCl!N34","v":7.916666666666667}]
[null,"½ hourly mean","60 mg/m3 ",{"$f":"HCl!M19","v":93},{"$f":"HCl!L19","v":7.416666666666667},{"$f":"HCl!M34","v":65},{"$f":"HCl!L34","v":7.916666666666667}]
["Sulphur dioxide","Daily mean","50 mg/m3 ",{"$f":"'SO2'!O19","v":44},{"$f":"'SO2'!N19","v":24.75},{"$f":"'SO2'!O34","v":46},{"$f":"'SO2'!N34","v":25.083333333333332}]
[null,"½ hourly mean","200 mg/m3 ",{"$f":"'SO2'!M19","v":198},{"$f":"'SO2'!L19","v":24.75},{"$f":"'SO2'!M34","v":189},{"$f":"'SO2'!L34","v":25.083333333333332}]
["Carbon monoxide ","Daily mean","50 mg/m3 ",{"$f":"'CO 95% 10 min'!Q19","v":26},{"$f":"'CO 95% 10 min'!P19","v":8.3333333333333339},{"$f":"'CO 95% 10 min'!Q34","v":33},{"$f":"'CO 95% 10 min'!P34","v":13.666666666666666}]
[null,"95%ile 10-min avg *","150 mg/m3 *",{"$f":"'CO 95% 10 min'!O19","v":1489},{"$f":"'CO 95% 10 min'!N19","v":8.3333333333333339},{"$f":"'CO 95% 10 min'!O34","v":600},{"$f":"'CO 95% 10 min'!N34","v":13.666666666666666}]
[" Ammonia","Daily mean","No limit set",{"$f":"'NH3'!O19","v":16},{"$f":"'NH3'!N19","v":4.25},{"$f":"'NH3'!O34","v":18},{"$f":"'NH3'!N34","v":5.666666666666667}]
["* = delete or amend as appropriate"]
["Comments :"]

{"sheet":"HCl","index":14,"n_rows":79,"n_cols":17,"rows_kept":79,"cut":false,"hidden":false,"merged":[[12,16,15,18],[51,9,63,9],[66,9,78,9],[4,9,4,14],[4,1,4,3],[4,4,4,6],[48,0,51,6],[47,0,47,6],[6,9,18,9],[21,9,33,9],[36,9,48,9],[3,16,7,18],[9,16,11,18]]}
[{"$f":"+'Cover Page'!$B$29","v":"Annual Performance Report 2021"},null,null,null,{"$f":"+'Cover Page'!$B$33","v":"Stoke Energy from Waste Facility"}]
[]
["Monitoring of Hydrogen Chloride emissions",null,null,"Whole Installation",null,null,"See  Notes in Cell Q3",null,null,{"$f":"+A3","v":"Monitoring of Hydrogen Chloride emissions"},null,null,null,"Per Combustion Line",null,null,"Notes:"]
[null,null,null,null,null,null,null,null,null,null,null,null,null,null,null,null,"User to add logic to complete Whole installation, Table A5:G18. From the data in Per Combustion Line, Table J6:O79, subject to No. of lines installed"]
["mg/Nm3","1/2 Hourly Reference Periods",null,null,"Daily Reference Periods"]
[{"$f":"+'Cover Page'!C39","v":2021},"1/2 hourly HCl ELV","Monthly 1/2 hourly mean","Highest 1/2 hourly maximum","Daily HCl ELV","Monthly daily mean","Highest daily maximum",null,null,{"$f":"+A6","v":2021},"mg/Nm3","Monthly 1/2 hourly mean","Monthly 1/2 hourly maximum","Monthly daily mean","Monthly daily maximum"]
["Jan",60,{"$f":"AVERAGE(L7,L22)","v":7.5},{"$f":"MAX(M7,M22)","v":41},10,{"$f":"AVERAGE(N7,N22)","v":7.5},{"$f":"MAX(O7,O22)","v":9},null,null,"A1","Jan",7,41,7,9]
["Feb",60,{"$f":"AVERAGE(L8,L23)","v":7},{"$f":"MAX(M8,M23)","v":25},10,{"$f":"AVERAGE(N8,N23)","v":7},{"$f":"MAX(O8,O23)","v":9},null,null,null,"Feb",6,25,6,7]
["Mar",60,7,41,10,7,9,null,null,null,"Mar",6,29,6,8,null,"Whole Installation table A5:G18:"]
["Apr",60,6,36,10,6,9,null,null,null,"Apr",4,20,4,6,null,"Mean: for 1/2 hourly and daily periods calculate mean of values across all operational combustion lines for the month"]
["May",60,8.5,35,10,8.5,21,null,null,null,"May",9,26,9,21]
["Jun",60,8,53,10,8,10,null,null,null,"Jun",8,46,8,9]
["Jul",60,8,65,10,8,9,null,null,null,"Jul",8,25,8,9,null,"Maximum: for 1/2 hourly and daily periods use the highest value across all operational combustion lines for the month"]
["Aug",60,8,45,10,8,11,null,null,null,"Aug",8,31,8,10]
["Sep",60,7.5,31,10,7.5,9,null,null,null,"Sep",8,24,8,9]
["Oct",60,8.5,45,10,8.5,10,null,null,null,"Oct",9,45,9,9]
["Nov",60,8,53,10,8,13,null,null,null,"Nov",8,30,8,9]
["Dec",60,8,93,10,8,11,null,null,null,"Dec",8,93,8,11]
[null,null,null,null,null,null,null,null,null,null,"Annual",{"$f":"AVERAGE(L7:L18)","v":7.416666666666667},{"$f":"MAX(M7:M18)","v":93},{"$f":"AVERAGE(N7:N18)","v":7.416666666666667},{"$f":"MAX(O7:O18)","v":21}]
[]
[null,null,null,null,null,null,null,null,null,{"$f":"+A6","v":2021},"mg/Nm3","Monthly 1/2 hourly mean","Monthly 1/2 hourly maximum","Monthly daily mean","Monthly daily maximum"]
[null,null,null,null,null,null,null,null,null,"A2","Jan",8,24,8,9]
[null,null,null,null,null,null,null,null,null,null,"Feb",8,23,8,9]
[null,null,null,null,null,null,null,null,null,null,"Mar",8,41,8,9]
[null,null,null,null,null,null,null,null,null,null,"Apr",8,36,8,9]
[null,null,null,null,null,null,null,null,null,null,"May",8,35,8,10]
[null,null,null,null,null,null,null,null,null,null,"Jun",8,53,8,10]
[null,null,null,null,null,null,null,null,null,null,"Jul",8,65,8,9]
[null,null,null,null,null,null,null,null,null,null,"Aug",8,45,8,11]
[null,null,null,null,null,null,null,null,null,null,"Sep",7,31,7,8]
[null,null,null,null,null,null,null,null,null,null,"Oct",8,29,8,10]
[null,null,null,null,null,null,null,null,null,null,"Nov",8,53,8,13]
[null,null,null,null,null,null,null,null,null,null,"Dec",8,61,8,9]
[null,null,null,null,null,null,null,null,null,null,"Annual",{"$f":"AVERAGE(L22:L33)","v":7.916666666666667},{"$f":"MAX(M22:M33)","v":65},{"$f":"AVERAGE(N22:N33)","v":7.916666666666667},{"$f":"MAX(O22:O33)","v":13}]
[]
[null,null,null,null,null,null,null,null,null,{"$f":"+A6","v":2021},"mg/Nm3","Monthly 1/2 hourly mean","Monthly 1/2 hourly maximum","Monthly daily mean","Monthly daily maximum"]
[null,null,null,null,null,null,null,null,null,"A3","Jan"]
[null,null,null,null,null,null,null,null,null,null,"Feb"]
[null,null,null,null,null,null,null,null,null,null,"Mar"]
[null,null,null,null,null,null,null,null,null,null,"Apr"]
[null,null,null,null,null,null,null,null,null,null,"May"]
[null,null,null,null,null,null,null,null,null,null,"Jun"]
[null,null,null,null,null,null,null,null,null,null,"Jul"]
[null,null,null,null,null,null,null,null,null,null,"Aug"]
[null,null,null,null,null,null,null,null,null,null,"Sep"]
[null,null,null,null,null,null,null,null,null,null,"Oct"]
[null,null,null,null,null,null,null,null,null,null,"Nov"]
["Comments :",null,null,null,null,null,null,null,null,null,"Dec"]
[null,null,null,null,null,null,null,null,null,null,"Annual",{"$f":"AVERAGE(L37:L48)","v":{"$error":"#DIV/0!"}},{"$f":"MAX(M37:M48)","v":0},{"$f":"AVERAGE(N37:N48)","v":{"$error":"#DIV/0!"}},{"$f":"MAX(O37:O48)","v":0}]
[]
[null,null,null,null,null,null,null,null,null,{"$f":"+A6","v":2021},"mg/Nm3","Monthly 1/2 hourly mean","Monthly 1/2 hourly maximum","Monthly daily mean","Monthly daily maximum"]
[null,null,null,null,null,null,null,null,null,"A4","Jan"]
[null,null,null,null,null,null,null,null,null,null,"Feb"]
[null,null,null,null,null,null,null,null,null,null,"Mar"]
[null,null,null,null,null,null,null,null,null,null,"Apr"]
[null,null,null,null,null,null,null,null,null,null,"May"]
[null,null,null,null,null,null,null,null,null,null,"Jun"]
[null,null,null,null,null,null,null,null,null,null,"Jul"]
[null,null,null,null,null,null,null,null,null,null,"Aug"]
[null,null,null,null,null,null,null,null,null,null,"Sep"]
[null,null,null,null,null,null,null,null,null,null,"Oct"]
[null,null,null,null,null,null,null,null,null,null,"Nov"]
[null,null,null,null,null,null,null,null,null,null,"Dec"]
[null,null,null,null,null,null,null,null,null,null,"Annual",{"$f":"AVERAGE(L52:L63)","v":{"$error":"#DIV/0!"}},{"$f":"MAX(M52:M63)","v":0},{"$f":"AVERAGE(N52:N63)","v":{"$error":"#DIV/0!"}},{"$f":"MAX(O52:O63)","v":0}]
[]
[null,null,null,null,null,null,null,null,null,{"$f":"+A6","v":2021},"mg/Nm3","Monthly 1/2 hourly mean","Monthly 1/2 hourly maximum","Monthly daily mean","Monthly daily maximum"]
[null,null,null,null,null,null,null,null,null,"A5","Jan"]
[null,null,null,null,null,null,null,null,null,null,"Feb"]
[null,null,null,null,null,null,null,null,null,null,"Mar"]
[null,null,null,null,null,null,null,null,null,null,"Apr"]
[null,null,null,null,null,null,null,null,null,null,"May"]
[null,null,null,null,null,null,null,null,null,null,"Jun"]
[null,null,null,null,null,null,null,null,null,null,"Jul"]
[null,null,null,null,null,null,null,null,null,null,"Aug"]
[null,null,null,null,null,null,null,null,null,null,"Sep"]
[null,null,null,null,null,null,null,null,null,null,"Oct"]
[null,null,null,null,null,null,null,null,null,null,"Nov"]
[null,null,null,null,null,null,null,null,null,null,"Dec"]
[null,null,null,null,null,null,null,null,null,null,"Annual",{"$f":"AVERAGE(L67:L78)","v":{"$error":"#DIV/0!"}},{"$f":"MAX(M67:M78)","v":0},{"$f":"AVERAGE(N67:N78)","v":{"$error":"#DIV/0!"}},{"$f":"MAX(O67:O78)","v":0}]

{"sheet":"SO2","index":15,"n_rows":79,"n_cols":17,"rows_kept":79,"cut":false,"hidden":false,"merged":[[3,16,7,18],[9,16,11,18],[12,16,15,18],[66,9,78,9],[4,1,4,3],[4,4,4,6],[4,9,4,14],[6,9,18,9],[21,9,33,9],[36,9,48,9],[47,0,47,6],[48,0,51,6],[51,9,63,9]]}
[{"$f":"+'Cover Page'!$B$29","v":"Annual Performance Report 2021"},null,null,null,{"$f":"+'Cover Page'!$B$33","v":"Stoke Energy from Waste Facility"}]
[]
["Monitoring of Sulphur dioxide emissions",null,null,"Whole Installation",null,null,"See  Notes in Cell Q3",null,null,{"$f":"+A3","v":"Monitoring of Sulphur dioxide emissions"},null,null,null,"Per Combustion Line",null,null,"Notes:"]
[null,null,null,null,null,null,null,null,null,null,null,null,null,null,null,null,"User to add logic to complete Whole installation, Table A5:G18. From the data in Per Combustion Line, Table J6:O79, subject to No. of lines installed"]
["mg/Nm3","1/2 Hourly Reference Periods",null,null,"Daily Reference Periods"]
[{"$f":"+'Cover Page'!C39","v":2021},"1/2 hourly SO2 ELV","Monthly 1/2 hourly mean","Highest 1/2 hourly maximum","Daily SO2 ELV","Monthly daily mean","Highest daily maximum",null,null,{"$f":"+A6","v":2021},"mg/Nm3","Monthly 1/2 hourly mean","Monthly 1/2 hourly maximum","Monthly daily mean","Monthly daily maximum"]
["Jan",200,{"$f":"AVERAGE(L7,L22)","v":27.5},{"$f":"MAX(M7,M22)","v":86},50,{"$f":"AVERAGE(N7,N22)","v":27.5},{"$f":"MAX(O7,O22)","v":37},null,null,"A1","Jan",32,79,32,37]
["Feb",200,{"$f":"AVERAGE(L8,L23)","v":31},{"$f":"MAX(M8,M23)","v":172},50,{"$f":"AVERAGE(N8,N23)","v":31},{"$f":"MAX(O8,O23)","v":39},null,null,null,"Feb",34,172,34,39]
["Mar",200,31,130,50,31,44,null,null,null,"Mar",34,130,34,44,null,"Whole Installation table A5:G18:"]
["Apr",200,28,104,50,28,37,null,null,null,"Apr",33,91,33,37,null,"Mean: for 1/2 hourly and daily periods calculate mean of values across all operational combustion lines for the month"]
["May",200,25,92,50,25,40,null,null,null,"May",28,92,28,40]
["Jun",200,21,117,50,21,27,null,null,null,"Jun",21,82,21,26]
["Jul",200,18,122,50,18,27,null,null,null,"Jul",17,84,17,22,null,"Maximum: for 1/2 hourly and daily periods use the highest value across all operational combustion lines for the month"]
["Aug",200,16.5,104,50,16.5,24,null,null,null,"Aug",15,56,15,22]
["Sep",200,23,127,50,23,35,null,null,null,"Sep",16,127,16,24]
["Oct",200,25.5,155,50,25.5,41,null,null,null,"Oct",19,81,19,28]
["Nov",200,27,193,50,27,46,null,null,null,"Nov",21,193,21,44]
["Dec",200,25.5,198,50,25.5,34,null,null,null,"Dec",27,198,27,34]
[null,null,null,null,null,null,null,null,null,null,"Annual",{"$f":"AVERAGE(L7:L18)","v":24.75},{"$f":"MAX(M7:M18)","v":198},{"$f":"AVERAGE(N7:N18)","v":24.75},{"$f":"MAX(O7:O18)","v":44}]
[]
[null,null,null,null,null,null,null,null,null,{"$f":"+A6","v":2021},"mg/Nm3","Monthly 1/2 hourly mean","Monthly 1/2 hourly maximum","Monthly daily mean","Monthly daily maximum"]
[null,null,null,null,null,null,null,null,null,"A2","Jan",23,86,23,35]
[null,null,null,null,null,null,null,null,null,null,"Feb",28,163,28,32]
[null,null,null,null,null,null,null,null,null,null,"Mar",28,77,28,36]
[null,null,null,null,null,null,null,null,null,null,"Apr",23,104,23,30]
[null,null,null,null,null,null,null,null,null,null,"May",22,71,22,32]
[null,null,null,null,null,null,null,null,null,null,"Jun",21,117,21,27]
[null,null,null,null,null,null,null,null,null,null,"Jul",19,122,19,27]
[null,null,null,null,null,null,null,null,null,null,"Aug",18,104,18,24]
[null,null,null,null,null,null,null,null,null,null,"Sep",30,86,30,35]
[null,null,null,null,null,null,null,null,null,null,"Oct",32,155,32,41]
[null,null,null,null,null,null,null,null,null,null,"Nov",33,171,33,46]
[null,null,null,null,null,null,null,null,null,null,"Dec",24,189,24,30]
[null,null,null,null,null,null,null,null,null,null,"Annual",{"$f":"AVERAGE(L22:L33)","v":25.083333333333332},{"$f":"MAX(M22:M33)","v":189},{"$f":"AVERAGE(N22:N33)","v":25.083333333333332},{"$f":"MAX(O22:O33)","v":46}]
[]
[null,null,null,null,null,null,null,null,null,{"$f":"+A6","v":2021},"mg/Nm3","Monthly 1/2 hourly mean","Monthly 1/2 hourly maximum","Monthly daily mean","Monthly daily maximum"]
[null,null,null,null,null,null,null,null,null,"A3","Jan"]
[null,null,null,null,null,null,null,null,null,null,"Feb"]
[null,null,null,null,null,null,null,null,null,null,"Mar"]
[null,null,null,null,null,null,null,null,null,null,"Apr"]
[null,null,null,null,null,null,null,null,null,null,"May"]
[null,null,null,null,null,null,null,null,null,null,"Jun"]
[null,null,null,null,null,null,null,null,null,null,"Jul"]
[null,null,null,null,null,null,null,null,null,null,"Aug"]
[null,null,null,null,null,null,null,null,null,null,"Sep"]
[null,null,null,null,null,null,null,null,null,null,"Oct"]
[null,null,null,null,null,null,null,null,null,null,"Nov"]
["Comments :",null,null,null,null,null,null,null,null,null,"Dec"]
[null,null,null,null,null,null,null,null,null,null,"Annual",{"$f":"AVERAGE(L37:L48)","v":{"$error":"#DIV/0!"}},{"$f":"MAX(M37:M48)","v":0},{"$f":"AVERAGE(N37:N48)","v":{"$error":"#DIV/0!"}},{"$f":"MAX(O37:O48)","v":0}]
[]
[null,null,null,null,null,null,null,null,null,{"$f":"+A6","v":2021},"mg/Nm3","Monthly 1/2 hourly mean","Monthly 1/2 hourly maximum","Monthly daily mean","Monthly daily maximum"]
[null,null,null,null,null,null,null,null,null,"A4","Jan"]
[null,null,null,null,null,null,null,null,null,null,"Feb"]
[null,null,null,null,null,null,null,null,null,null,"Mar"]
[null,null,null,null,null,null,null,null,null,null,"Apr"]
[null,null,null,null,null,null,null,null,null,null,"May"]
[null,null,null,null,null,null,null,null,null,null,"Jun"]
[null,null,null,null,null,null,null,null,null,null,"Jul"]
[null,null,null,null,null,null,null,null,null,null,"Aug"]
[null,null,null,null,null,null,null,null,null,null,"Sep"]
[null,null,null,null,null,null,null,null,null,null,"Oct"]
[null,null,null,null,null,null,null,null,null,null,"Nov"]
[null,null,null,null,null,null,null,null,null,null,"Dec"]
[null,null,null,null,null,null,null,null,null,null,"Annual",{"$f":"AVERAGE(L52:L63)","v":{"$error":"#DIV/0!"}},{"$f":"MAX(M52:M63)","v":0},{"$f":"AVERAGE(N52:N63)","v":{"$error":"#DIV/0!"}},{"$f":"MAX(O52:O63)","v":0}]
[]
[null,null,null,null,null,null,null,null,null,{"$f":"+A6","v":2021},"mg/Nm3","Monthly 1/2 hourly mean","Monthly 1/2 hourly maximum","Monthly daily mean","Monthly daily maximum"]
[null,null,null,null,null,null,null,null,null,"A5","Jan"]
[null,null,null,null,null,null,null,null,null,null,"Feb"]
[null,null,null,null,null,null,null,null,null,null,"Mar"]
[null,null,null,null,null,null,null,null,null,null,"Apr"]
[null,null,null,null,null,null,null,null,null,null,"May"]
[null,null,null,null,null,null,null,null,null,null,"Jun"]
[null,null,null,null,null,null,null,null,null,null,"Jul"]
[null,null,null,null,null,null,null,null,null,null,"Aug"]
[null,null,null,null,null,null,null,null,null,null,"Sep"]
[null,null,null,null,null,null,null,null,null,null,"Oct"]
[null,null,null,null,null,null,null,null,null,null,"Nov"]
[null,null,null,null,null,null,null,null,null,null,"Dec"]
[null,null,null,null,null,null,null,null,null,null,"Annual",{"$f":"AVERAGE(L67:L78)","v":{"$error":"#DIV/0!"}},{"$f":"MAX(M67:M78)","v":0},{"$f":"AVERAGE(N67:N78)","v":{"$error":"#DIV/0!"}},{"$f":"MAX(O67:O78)","v":0}]

{"sheet":"NOx","index":16,"n_rows":79,"n_cols":17,"rows_kept":79,"cut":false,"hidden":false,"merged":[[3,16,7,18],[9,16,11,18],[12,16,15,18],[66,9,78,9],[4,1,4,3],[4,4,4,6],[4,9,4,14],[6,9,18,9],[21,9,33,9],[36,9,48,9],[47,0,47,6],[48,0,51,6],[51,9,63,9]]}
[{"$f":"+'Cover Page'!$B$29","v":"Annual Performance Report 2021"},null,null,null,{"$f":"+'Cover Page'!$B$33","v":"Stoke Energy from Waste Facility"}]
[]
["Monitoring of Oxides of Nitrogen emissions",null,null,"Whole Installation",null,null,"See  Notes in Cell Q3",null,null,{"$f":"+A3","v":"Monitoring of Oxides of Nitrogen emissions"},null,null,null,"Per Combustion Line",null,null,"Notes:"]
[null,null,null,null,null,null,null,null,null,null,null,null,null,null,null,null,"User to add logic to complete Whole installation, Table A5:G18. From the data in Per Combustion Line, Table J6:O79, subject to No. of lines installed"]
["mg/Nm3","1/2 Hourly Reference Periods",null,null,"Daily Reference Periods"]
[{"$f":"+'Cover Page'!C39","v":2021},"1/2 hourly NOx ELV","Monthly 1/2 hourly mean","Highest 1/2 hourly maximum","Daily NOx ELV","Monthly daily mean","Highest daily maximum",null,null,{"$f":"+A6","v":2021},"mg/Nm3","Monthly 1/2 hourly mean","Monthly 1/2 hourly maximum","Monthly daily mean","Monthly daily maximum"]
["Jan",400,{"$f":"AVERAGE(L7,L22)","v":171},{"$f":"MAX(M7,M22)","v":383},200,{"$f":"AVERAGE(N7,N22)","v":171},{"$f":"MAX(O7,O22)","v":182},null,null,"A1","Jan",176,383,176,182]
["Feb",400,{"$f":"AVERAGE(L8,L23)","v":172},{"$f":"MAX(M8,M23)","v":237},200,{"$f":"AVERAGE(N8,N23)","v":172},{"$f":"MAX(O8,O23)","v":179},null,null,null,"Feb",175,237,175,179]
["Mar",400,171.5,246,200,171.5,179,null,null,null,"Mar",177,192,177,179,null,"Whole Installation table A5:G18:"]
["Apr",400,174,226,200,174,177,null,null,null,"Apr",176,199,176,177,null,"Mean: for 1/2 hourly and daily periods calculate mean of values across all operational combustion lines for the month"]
["May",400,168,292,200,168,183,null,null,null,"May",175,292,175,183]
["Jun",400,171.5,304,200,171.5,182,null,null,null,"Jun",177,304,177,182]
["Jul",400,172,244,200,172,178,null,null,null,"Jul",177,185,177,178,null,"Maximum: for 1/2 hourly and daily periods use the highest value across all operational combustion lines for the month"]
["Aug",400,172,254,200,172,181,null,null,null,"Aug",178,254,178,181]
["Sep",400,173.5,257,200,173.5,180,null,null,null,"Sep",175,257,175,180]
["Oct",400,174,234,200,174,178,null,null,null,"Oct",177,188,177,178]
["Nov",400,174.5,278,200,174.5,182,null,null,null,"Nov",178,278,178,182]
["Dec",400,175.5,264,200,175.5,179,null,null,null,"Dec",178,210,178,179]
[null,null,null,null,null,null,null,null,null,null,"Annual",{"$f":"AVERAGE(L7:L18)","v":176.58333333333334},{"$f":"MAX(M7:M18)","v":383},{"$f":"AVERAGE(N7:N18)","v":176.58333333333334},{"$f":"MAX(O7:O18)","v":183}]
[]
[null,null,null,null,null,null,null,null,null,{"$f":"+A6","v":2021},"mg/Nm3","Monthly 1/2 hourly mean","Monthly 1/2 hourly maximum","Monthly daily mean","Monthly daily maximum"]
[null,null,null,null,null,null,null,null,null,"A2","Jan",166,254,166,170]
[null,null,null,null,null,null,null,null,null,null,"Feb",169,218,169,172]
[null,null,null,null,null,null,null,null,null,null,"Mar",166,246,166,173]
[null,null,null,null,null,null,null,null,null,null,"Apr",172,226,172,176]
[null,null,null,null,null,null,null,null,null,null,"May",161,187,161,167]
[null,null,null,null,null,null,null,null,null,null,"Jun",166,186,166,172]
[null,null,null,null,null,null,null,null,null,null,"Jul",167,244,167,172]
[null,null,null,null,null,null,null,null,null,null,"Aug",166,239,166,174]
[null,null,null,null,null,null,null,null,null,null,"Sep",172,199,172,174]
[null,null,null,null,null,null,null,null,null,null,"Oct",171,234,171,173]
[null,null,null,null,null,null,null,null,null,null,"Nov",171,218,171,175]
[null,null,null,null,null,null,null,null,null,null,"Dec",173,264,173,176]
[null,null,null,null,null,null,null,null,null,null,"Annual",{"$f":"AVERAGE(L22:L33)","v":168.33333333333334},{"$f":"MAX(M22:M33)","v":264},{"$f":"AVERAGE(N22:N33)","v":168.33333333333334},{"$f":"MAX(O22:O33)","v":176}]
[]
[null,null,null,null,null,null,null,null,null,{"$f":"+A6","v":2021},"mg/Nm3","Monthly 1/2 hourly mean","Monthly 1/2 hourly maximum","Monthly daily mean","Monthly daily maximum"]
[null,null,null,null,null,null,null,null,null,"A3","Jan"]
[null,null,null,null,null,null,null,null,null,null,"Feb"]
[null,null,null,null,null,null,null,null,null,null,"Mar"]
[null,null,null,null,null,null,null,null,null,null,"Apr"]
[null,null,null,null,null,null,null,null,null,null,"May"]
[null,null,null,null,null,null,null,null,null,null,"Jun"]
[null,null,null,null,null,null,null,null,null,null,"Jul"]
[null,null,null,null,null,null,null,null,null,null,"Aug"]
[null,null,null,null,null,null,null,null,null,null,"Sep"]
[null,null,null,null,null,null,null,null,null,null,"Oct"]
[null,null,null,null,null,null,null,null,null,null,"Nov"]
["Comments :",null,null,null,null,null,null,null,null,null,"Dec"]
[null,null,null,null,null,null,null,null,null,null,"Annual",{"$f":"AVERAGE(L37:L48)","v":{"$error":"#DIV/0!"}},{"$f":"MAX(M37:M48)","v":0},{"$f":"AVERAGE(N37:N48)","v":{"$error":"#DIV/0!"}},{"$f":"MAX(O37:O48)","v":0}]
[]
[null,null,null,null,null,null,null,null,null,{"$f":"+A6","v":2021},"mg/Nm3","Monthly 1/2 hourly mean","Monthly 1/2 hourly maximum","Monthly daily mean","Monthly daily maximum"]
[null,null,null,null,null,null,null,null,null,"A4","Jan"]
[null,null,null,null,null,null,null,null,null,null,"Feb"]
[null,null,null,null,null,null,null,null,null,null,"Mar"]
[null,null,null,null,null,null,null,null,null,null,"Apr"]
[null,null,null,null,null,null,null,null,null,null,"May"]
[null,null,null,null,null,null,null,null,null,null,"Jun"]
[null,null,null,null,null,null,null,null,null,null,"Jul"]
[null,null,null,null,null,null,null,null,null,null,"Aug"]
[null,null,null,null,null,null,null,null,null,null,"Sep"]
[null,null,null,null,null,null,null,null,null,null,"Oct"]
[null,null,null,null,null,null,null,null,null,null,"Nov"]
[null,null,null,null,null,null,null,null,null,null,"Dec"]
[null,null,null,null,null,null,null,null,null,null,"Annual",{"$f":"AVERAGE(L52:L63)","v":{"$error":"#DIV/0!"}},{"$f":"MAX(M52:M63)","v":0},{"$f":"AVERAGE(N52:N63)","v":{"$error":"#DIV/0!"}},{"$f":"MAX(O52:O63)","v":0}]
[]
[null,null,null,null,null,null,null,null,null,{"$f":"+A6","v":2021},"mg/Nm3","Monthly 1/2 hourly mean","Monthly 1/2 hourly maximum","Monthly daily mean","Monthly daily maximum"]
[null,null,null,null,null,null,null,null,null,"A5","Jan"]
[null,null,null,null,null,null,null,null,null,null,"Feb"]
[null,null,null,null,null,null,null,null,null,null,"Mar"]
[null,null,null,null,null,null,null,null,null,null,"Apr"]
[null,null,null,null,null,null,null,null,null,null,"May"]
[null,null,null,null,null,null,null,null,null,null,"Jun"]
[null,null,null,null,null,null,null,null,null,null,"Jul"]
[null,null,null,null,null,null,null,null,null,null,"Aug"]
[null,null,null,null,null,null,null,null,null,null,"Sep"]
[null,null,null,null,null,null,null,null,null,null,"Oct"]
[null,null,null,null,null,null,null,null,null,null,"Nov"]
[null,null,null,null,null,null,null,null,null,null,"Dec"]
[null,null,null,null,null,null,null,null,null,null,"Annual",{"$f":"AVERAGE(L67:L78)","v":{"$error":"#DIV/0!"}},{"$f":"MAX(M67:M78)","v":0},{"$f":"AVERAGE(N67:N78)","v":{"$error":"#DIV/0!"}},{"$f":"MAX(O67:O78)","v":0}]

{"sheet":"TOC","index":17,"n_rows":79,"n_cols":17,"rows_kept":79,"cut":false,"hidden":false,"merged":[[3,16,7,18],[9,16,11,18],[12,16,15,18],[66,9,78,9],[4,1,4,3],[4,4,4,6],[4,9,4,14],[6,9,18,9],[21,9,33,9],[36,9,48,9],[47,0,47,6],[48,0,51,6],[51,9,63,9]]}
[{"$f":"+'Cover Page'!$B$29","v":"Annual Performance Report 2021"},null,null,null,{"$f":"+'Cover Page'!$B$33","v":"Stoke Energy from Waste Facility"}]
[]
["Monitoring of Total organic carbon emissions",null,null,"Whole Installation",null,null,"See  Notes in Cell Q3",null,null,{"$f":"+A3","v":"Monitoring of Total organic carbon emissions"},null,null,null,"Per Combustion Line",null,null,"Notes:"]
[null,null,null,null,null,null,null,null,null,null,null,null,null,null,null,null,"User to add logic to complete Whole installation, Table A5:G18. From the data in Per Combustion Line, Table J6:O79, subject to No. of lines installed"]
["mg/Nm3","1/2 Hourly Reference Periods",null,null,"Daily Reference Periods"]
[{"$f":"+'Cover Page'!C39","v":2021},"1/2 hourly TOC ELV","Monthly 1/2 hourly mean","Highest 1/2 hourly maximum","Daily TOC ELV","Monthly daily mean","Highest daily maximum",null,null,{"$f":"+A6","v":2021},"mg/Nm3","Monthly 1/2 hourly mean","Monthly 1/2 hourly maximum","Monthly daily mean","Monthly daily maximum"]
["Jan",20,{"$f":"AVERAGE(L7,L22)","v":0},{"$f":"MAX(M7,M22)","v":5},10,{"$f":"AVERAGE(N7,N22)","v":0},{"$f":"MAX(O7,O22)","v":1},null,null,"A1","Jan",0,4,0,1]
["Feb",20,{"$f":"AVERAGE(L8,L23)","v":0},{"$f":"MAX(M8,M23)","v":10},10,{"$f":"AVERAGE(N8,N23)","v":0},{"$f":"MAX(O8,O23)","v":1},null,null,null,"Feb",0,4,0,1]
["Mar",20,0,3,10,0,2,null,null,null,"Mar",0,3,0,0,null,"Whole Installation table A5:G18:"]
["Apr",20,0,7,10,0,2,null,null,null,"Apr",0,1,0,0,null,"Mean: for 1/2 hourly and daily periods calculate mean of values across all operational combustion lines for the month"]
["May",20,1,8,10,1,3,null,null,null,"May",0,4,0,1]
["Jun",20,1,9,10,1,2,null,null,null,"Jun",0,9,0,0]
["Jul",20,1,5,10,1,2,null,null,null,"Jul",0,2,0,0,null,"Maximum: for 1/2 hourly and daily periods use the highest value across all operational combustion lines for the month"]
["Aug",20,1,8,10,1,2,null,null,null,"Aug",0,1,0,0]
["Sep",20,1,4,10,1,2,null,null,null,"Sep",0,3,0,1]
["Oct",20,1,4,10,1,2,null,null,null,"Oct",0,4,0,0]
["Nov",20,0.5,17,10,0.5,2,null,null,null,"Nov",0,17,0,0]
["Dec",20,0,14,10,0,1,null,null,null,"Dec",0,5,0,1]
[null,null,null,null,null,null,null,null,null,null,"Annual",{"$f":"AVERAGE(L7:L18)","v":0},{"$f":"MAX(M7:M18)","v":17},{"$f":"AVERAGE(N7:N18)","v":0},{"$f":"MAX(O7:O18)","v":1}]
[]
[null,null,null,null,null,null,null,null,null,{"$f":"+A6","v":2021},"mg/Nm3","Monthly 1/2 hourly mean","Monthly 1/2 hourly maximum","Monthly daily mean","Monthly daily maximum"]
[null,null,null,null,null,null,null,null,null,"A2","Jan",0,5,0,0]
[null,null,null,null,null,null,null,null,null,null,"Feb",0,10,0,0]
[null,null,null,null,null,null,null,null,null,null,"Mar",0,3,0,2]
[null,null,null,null,null,null,null,null,null,null,"Apr",0,7,0,2]
[null,null,null,null,null,null,null,null,null,null,"May",2,8,2,3]
[null,null,null,null,null,null,null,null,null,null,"Jun",2,9,2,2]
[null,null,null,null,null,null,null,null,null,null,"Jul",2,5,2,2]
[null,null,null,null,null,null,null,null,null,null,"Aug",2,8,2,2]
[null,null,null,null,null,null,null,null,null,null,"Sep",2,4,2,2]
[null,null,null,null,null,null,null,null,null,null,"Oct",2,4,2,2]
[null,null,null,null,null,null,null,null,null,null,"Nov",1,3,1,2]
[null,null,null,null,null,null,null,null,null,null,"Dec",0,14,0,1]
[null,null,null,null,null,null,null,null,null,null,"Annual",{"$f":"AVERAGE(L22:L33)","v":1.0833333333333333},{"$f":"MAX(M22:M33)","v":14},{"$f":"AVERAGE(N22:N33)","v":1.0833333333333333},{"$f":"MAX(O22:O33)","v":3}]
[]
[null,null,null,null,null,null,null,null,null,{"$f":"+A6","v":2021},"mg/Nm3","Monthly 1/2 hourly mean","Monthly 1/2 hourly maximum","Monthly daily mean","Monthly daily maximum"]
[null,null,null,null,null,null,null,null,null,"A3","Jan"]
[null,null,null,null,null,null,null,null,null,null,"Feb"]
[null,null,null,null,null,null,null,null,null,null,"Mar"]
[null,null,null,null,null,null,null,null,null,null,"Apr"]
[null,null,null,null,null,null,null,null,null,null,"May"]
[null,null,null,null,null,null,null,null,null,null,"Jun"]
[null,null,null,null,null,null,null,null,null,null,"Jul"]
[null,null,null,null,null,null,null,null,null,null,"Aug"]
[null,null,null,null,null,null,null,null,null,null,"Sep"]
[null,null,null,null,null,null,null,null,null,null,"Oct"]
[null,null,null,null,null,null,null,null,null,null,"Nov"]
["Comments :",null,null,null,null,null,null,null,null,null,"Dec"]
[null,null,null,null,null,null,null,null,null,null,"Annual",{"$f":"AVERAGE(L37:L48)","v":{"$error":"#DIV/0!"}},{"$f":"MAX(M37:M48)","v":0},{"$f":"AVERAGE(N37:N48)","v":{"$error":"#DIV/0!"}},{"$f":"MAX(O37:O48)","v":0}]
[]
[null,null,null,null,null,null,null,null,null,{"$f":"+A6","v":2021},"mg/Nm3","Monthly 1/2 hourly mean","Monthly 1/2 hourly maximum","Monthly daily mean","Monthly daily maximum"]
[null,null,null,null,null,null,null,null,null,"A4","Jan"]
[null,null,null,null,null,null,null,null,null,null,"Feb"]
[null,null,null,null,null,null,null,null,null,null,"Mar"]
[null,null,null,null,null,null,null,null,null,null,"Apr"]
[null,null,null,null,null,null,null,null,null,null,"May"]
[null,null,null,null,null,null,null,null,null,null,"Jun"]
[null,null,null,null,null,null,null,null,null,null,"Jul"]
[null,null,null,null,null,null,null,null,null,null,"Aug"]
[null,null,null,null,null,null,null,null,null,null,"Sep"]
[null,null,null,null,null,null,null,null,null,null,"Oct"]
[null,null,null,null,null,null,null,null,null,null,"Nov"]
[null,null,null,null,null,null,null,null,null,null,"Dec"]
[null,null,null,null,null,null,null,null,null,null,"Annual",{"$f":"AVERAGE(L52:L63)","v":{"$error":"#DIV/0!"}},{"$f":"MAX(M52:M63)","v":0},{"$f":"AVERAGE(N52:N63)","v":{"$error":"#DIV/0!"}},{"$f":"MAX(O52:O63)","v":0}]
[]
[null,null,null,null,null,null,null,null,null,{"$f":"+A6","v":2021},"mg/Nm3","Monthly 1/2 hourly mean","Monthly 1/2 hourly maximum","Monthly daily mean","Monthly daily maximum"]
[null,null,null,null,null,null,null,null,null,"A5","Jan"]
[null,null,null,null,null,null,null,null,null,null,"Feb"]
[null,null,null,null,null,null,null,null,null,null,"Mar"]
[null,null,null,null,null,null,null,null,null,null,"Apr"]
[null,null,null,null,null,null,null,null,null,null,"May"]
[null,null,null,null,null,null,null,null,null,null,"Jun"]
[null,null,null,null,null,null,null,null,null,null,"Jul"]
[null,null,null,null,null,null,null,null,null,null,"Aug"]
[null,null,null,null,null,null,null,null,null,null,"Sep"]
[null,null,null,null,null,null,null,null,null,null,"Oct"]
[null,null,null,null,null,null,null,null,null,null,"Nov"]
[null,null,null,null,null,null,null,null,null,null,"Dec"]
[null,null,null,null,null,null,null,null,null,null,"Annual",{"$f":"AVERAGE(L67:L78)","v":{"$error":"#DIV/0!"}},{"$f":"MAX(M67:M78)","v":0},{"$f":"AVERAGE(N67:N78)","v":{"$error":"#DIV/0!"}},{"$f":"MAX(O67:O78)","v":0}]

{"sheet":"Particulates","index":18,"n_rows":79,"n_cols":17,"rows_kept":79,"cut":false,"hidden":false,"merged":[[3,16,7,18],[9,16,11,18],[12,16,15,18],[66,9,78,9],[4,1,4,3],[4,4,4,6],[4,9,4,14],[6,9,18,9],[21,9,33,9],[36,9,48,9],[47,0,47,6],[48,0,51,6],[51,9,63,9]]}
[{"$f":"+'Cover Page'!$B$29","v":"Annual Performance Report 2021"},null,null,null,{"$f":"+'Cover Page'!$B$33","v":"Stoke Energy from Waste Facility"}]
[]
["Monitoring of Particulate matter emissions",null,null,"Whole Installation",null,null,"See  Notes in Cell Q3",null,null,{"$f":"+A3","v":"Monitoring of Particulate matter emissions"},null,null,null,"Per Combustion Line",null,null,"Notes:"]
[null,null,null,null,null,null,null,null,null,null,null,null,null,null,null,null,"User to add logic to complete Whole installation, Table A5:G18. From the data in Per Combustion Line, Table J6:O79, subject to No. of lines installed"]
["mg/Nm3","1/2 Hourly Reference Periods",null,null,"Daily Reference Periods"]
[{"$f":"+'Cover Page'!C39","v":2021},"1/2 hourly PM ELV","Monthly 1/2 hourly mean","Highest 1/2 hourly maximum","Daily PM ELV","Monthly daily mean","Highest daily maximum",null,null,{"$f":"+A6","v":2021},"mg/Nm3","Monthly 1/2 hourly mean","Monthly 1/2 hourly maximum","Monthly daily mean","Monthly daily maximum"]
["Jan",30,{"$f":"AVERAGE(L7,L22)","v":1.5},{"$f":"MAX(M7,M22)","v":7},10,{"$f":"AVERAGE(N7,N22)","v":1.5},{"$f":"MAX(O7,O22)","v":4},null,null,"A1","Jan",2,7,2,4]
["Feb",30,{"$f":"AVERAGE(L8,L23)","v":1},{"$f":"MAX(M8,M23)","v":8},10,{"$f":"AVERAGE(N8,N23)","v":1},{"$f":"MAX(O8,O23)","v":3},null,null,null,"Feb",2,8,2,3]
["Mar",30,3,17,10,3,6,null,null,null,"Mar",3,9,3,4,null,"Whole Installation table A5:G18:"]
["Apr",30,3.5,18,10,3.5,7,null,null,null,"Apr",3,7,3,3,null,"Mean: for 1/2 hourly and daily periods calculate mean of values across all operational combustion lines for the month"]
["May",30,2.5,55,10,2.5,9,null,null,null,"May",4,55,4,9]
["Jun",30,2,25,10,2,8,null,null,null,"Jun",3,25,3,8]
["Jul",30,3,8,10,3,5,null,null,null,"Jul",4,8,4,5,null,"Maximum: for 1/2 hourly and daily periods use the highest value across all operational combustion lines for the month"]
["Aug",30,3.5,12,10,3.5,7,null,null,null,"Aug",4,12,4,7]
["Sep",30,2,13,10,2,7,null,null,null,"Sep",3,13,3,7]
["Oct",30,1.5,5,10,1.5,3,null,null,null,"Oct",3,5,3,3]
["Nov",30,1.5,25,10,1.5,5,null,null,null,"Nov",3,25,3,5]
["Dec",30,1,21,10,1,7,null,null,null,"Dec",2,21,2,7]
[null,null,null,null,null,null,null,null,null,null,"Annual",{"$f":"AVERAGE(L7:L18)","v":3},{"$f":"MAX(M7:M18)","v":55},{"$f":"AVERAGE(N7:N18)","v":3},{"$f":"MAX(O7:O18)","v":9}]
[]
[null,null,null,null,null,null,null,null,null,{"$f":"+A6","v":2021},"mg/Nm3","Monthly 1/2 hourly mean","Monthly 1/2 hourly maximum","Monthly daily mean","Monthly daily maximum"]
[null,null,null,null,null,null,null,null,null,"A2","Jan",1,6,1,3]
[null,null,null,null,null,null,null,null,null,null,"Feb",0,2,0,1]
[null,null,null,null,null,null,null,null,null,null,"Mar",3,17,3,6]
[null,null,null,null,null,null,null,null,null,null,"Apr",4,18,4,7]
[null,null,null,null,null,null,null,null,null,null,"May",1,17,1,7]
[null,null,null,null,null,null,null,null,null,null,"Jun",1,2,1,1]
[null,null,null,null,null,null,null,null,null,null,"Jul",2,7,2,4]
[null,null,null,null,null,null,null,null,null,null,"Aug",3,9,3,5]
[null,null,null,null,null,null,null,null,null,null,"Sep",1,7,1,3]
[null,null,null,null,null,null,null,null,null,null,"Oct",0,0,0,0]
[null,null,null,null,null,null,null,null,null,null,"Nov",0,0,0,0]
[null,null,null,null,null,null,null,null,null,null,"Dec",0,0,0,0]
[null,null,null,null,null,null,null,null,null,null,"Annual",{"$f":"AVERAGE(L22:L33)","v":1.3333333333333333},{"$f":"MAX(M22:M33)","v":18},{"$f":"AVERAGE(N22:N33)","v":1.3333333333333333},{"$f":"MAX(O22:O33)","v":7}]
[]
[null,null,null,null,null,null,null,null,null,{"$f":"+A6","v":2021},"mg/Nm3","Monthly 1/2 hourly mean","Monthly 1/2 hourly maximum","Monthly daily mean","Monthly daily maximum"]
[null,null,null,null,null,null,null,null,null,"A3","Jan"]
[null,null,null,null,null,null,null,null,null,null,"Feb"]
[null,null,null,null,null,null,null,null,null,null,"Mar"]
[null,null,null,null,null,null,null,null,null,null,"Apr"]
[null,null,null,null,null,null,null,null,null,null,"May"]
[null,null,null,null,null,null,null,null,null,null,"Jun"]
[null,null,null,null,null,null,null,null,null,null,"Jul"]
[null,null,null,null,null,null,null,null,null,null,"Aug"]
[null,null,null,null,null,null,null,null,null,null,"Sep"]
[null,null,null,null,null,null,null,null,null,null,"Oct"]
[null,null,null,null,null,null,null,null,null,null,"Nov"]
["Comments :",null,null,null,null,null,null,null,null,null,"Dec"]
[null,null,null,null,null,null,null,null,null,null,"Annual",{"$f":"AVERAGE(L37:L48)","v":{"$error":"#DIV/0!"}},{"$f":"MAX(M37:M48)","v":0},{"$f":"AVERAGE(N37:N48)","v":{"$error":"#DIV/0!"}},{"$f":"MAX(O37:O48)","v":0}]
[]
[null,null,null,null,null,null,null,null,null,{"$f":"+A6","v":2021},"mg/Nm3","Monthly 1/2 hourly mean","Monthly 1/2 hourly maximum","Monthly daily mean","Monthly daily maximum"]
[null,null,null,null,null,null,null,null,null,"A4","Jan"]
[null,null,null,null,null,null,null,null,null,null,"Feb"]
[null,null,null,null,null,null,null,null,null,null,"Mar"]
[null,null,null,null,null,null,null,null,null,null,"Apr"]
[null,null,null,null,null,null,null,null,null,null,"May"]
[null,null,null,null,null,null,null,null,null,null,"Jun"]
[null,null,null,null,null,null,null,null,null,null,"Jul"]
[null,null,null,null,null,null,null,null,null,null,"Aug"]
[null,null,null,null,null,null,null,null,null,null,"Sep"]
[null,null,null,null,null,null,null,null,null,null,"Oct"]
[null,null,null,null,null,null,null,null,null,null,"Nov"]
[null,null,null,null,null,null,null,null,null,null,"Dec"]
[null,null,null,null,null,null,null,null,null,null,"Annual",{"$f":"AVERAGE(L52:L63)","v":{"$error":"#DIV/0!"}},{"$f":"MAX(M52:M63)","v":0},{"$f":"AVERAGE(N52:N63)","v":{"$error":"#DIV/0!"}},{"$f":"MAX(O52:O63)","v":0}]
[]
[null,null,null,null,null,null,null,null,null,{"$f":"+A6","v":2021},"mg/Nm3","Monthly 1/2 hourly mean","Monthly 1/2 hourly maximum","Monthly daily mean","Monthly daily maximum"]
[null,null,null,null,null,null,null,null,null,"A5","Jan"]
[null,null,null,null,null,null,null,null,null,null,"Feb"]
[null,null,null,null,null,null,null,null,null,null,"Mar"]
[null,null,null,null,null,null,null,null,null,null,"Apr"]
[null,null,null,null,null,null,null,null,null,null,"May"]
[null,null,null,null,null,null,null,null,null,null,"Jun"]
[null,null,null,null,null,null,null,null,null,null,"Jul"]
[null,null,null,null,null,null,null,null,null,null,"Aug"]
[null,null,null,null,null,null,null,null,null,null,"Sep"]
[null,null,null,null,null,null,null,null,null,null,"Oct"]
[null,null,null,null,null,null,null,null,null,null,"Nov"]
[null,null,null,null,null,null,null,null,null,null,"Dec"]
[null,null,null,null,null,null,null,null,null,null,"Annual",{"$f":"AVERAGE(L67:L78)","v":{"$error":"#DIV/0!"}},{"$f":"MAX(M67:M78)","v":0},{"$f":"AVERAGE(N67:N78)","v":{"$error":"#DIV/0!"}},{"$f":"MAX(O67:O78)","v":0}]

{"sheet":"CO 95% 10 min","index":19,"n_rows":79,"n_cols":19,"rows_kept":79,"cut":false,"hidden":false,"merged":[[3,18,7,20],[9,18,11,20],[12,18,15,20],[66,10,78,10],[4,1,4,4],[4,5,4,7],[4,10,4,16],[6,10,18,10],[21,10,33,10],[36,10,48,10],[47,0,47,7],[48,0,51,7],[51,10,63,10]]}
[{"$f":"+'Cover Page'!$B$29","v":"Annual Performance Report 2021"},null,null,null,{"$f":"+'Cover Page'!$B$33","v":"Stoke Energy from Waste Facility"}]
[]
["Monitoring of Carbon Monoxide (10-minute avg)",null,null,null,"Whole Installation",null,null,"See  Notes in Cell S3",null,{"$f":"+A3","v":"Monitoring of Carbon Monoxide (10-minute avg)"},null,null,null,null,"Per Combustion Line",null,"Notes:",null,"Notes:"]
[null,null,null,null,null,null,null,null,null,null,null,null,null,null,null,null,null,null,"User to add logic to complete Whole installation, Table A5:H18. From the data in Per Combustion Line, Table K6:Q79, subject to No. of lines installed"]
["mg/Nm3","10-minute Reference Periods",null,null,null,"Daily Reference Periods"]
[{"$f":"+'Cover Page'!C39","v":2021},"95%ile 10-min avg CO ELV","95%ile 10-min avg maximum","Monthly CO 10-min avg mean","10-min avg maximum","Daily CO ELV","Monthly daily mean","Highest daily maximum",null,null,{"$f":"+A6","v":2021},"mg/Nm3","95%ile 10-min avg maximum","Monthly CO 10-min avg mean","10-min avg maximum","Monthly daily mean","Monthly daily maximum"]
["Jan",150,{"$f":"MAX(M7,M22)","v":29.98},{"$f":"AVERAGE(N7,N22)","v":18.5},{"$f":"MAX(O7,O22)","v":468},50,{"$f":"AVERAGE(P7,P22)","v":18.5},{"$f":"MAX(Q7,Q22)","v":29},null,null,"A1","Jan",21.27,14,178,14,20]
["Feb",{"$f":"+B7","v":150},{"$f":"MAX(M8,M23)","v":31.16},{"$f":"AVERAGE(N8,N23)","v":18},{"$f":"MAX(O8,O23)","v":1489},{"$f":"+F7","v":50},{"$f":"AVERAGE(P8,P23)","v":18},{"$f":"MAX(Q8,Q23)","v":26},null,null,null,"Feb",20.51,14,1489,14,26]
["Mar",{"$f":"+B8","v":150},26.77,15,318,{"$f":"+F8","v":50},15,33,null,null,null,"Mar",17.059999999999999,11,240,11,17,null,"Whole Installation table A5:H18:"]
["Apr",150,28.39,14.5,600,50,14.5,27,null,null,null,"Apr",11.61,9,51,9,10,null,"Mean: for 10-min and daily periods use average of all operational combustion lines."]
["May",150,21.31,9.5,269,50,9.5,20,null,null,null,"May",8.68,5,182,5,12]
["Jun",150,15.67,6,76,50,6,15,null,null,null,"Jun",7.06,4,76,4,6]
["Jul",150,10.3,5.5,207,50,5.5,11,null,null,null,"Jul",7.24,4,169,4,11,null,"Maximum: for 10-min and daily periods use the highest of all operational combustion lines in any month."]
["Aug",150,10.97,6.5,466,50,6.5,22,null,null,null,"Aug",9.66,5,228,5,9]
["Sep",150,15.72,8,231,50,8,14,null,null,null,"Sep",9.14,5,70,5,11]
["Oct",150,13.8,8,176,50,8,13,null,null,null,"Oct",9.58,6,117,6,7]
["Nov",150,18.28,9.5,311,50,9.5,17,null,null,null,"Nov",18.28,9,311,9,17]
["Dec",150,20.93,13,338,50,13,21,null,null,null,"Dec",20.93,14,301,14,18]
[null,null,null,null,null,null,null,null,null,null,null,"Annual",{"$f":"AVERAGE(M7:M18)","v":13.418333333333331},{"$f":"AVERAGE(N7:N18)","v":8.3333333333333339},{"$f":"MAX(O7:O18)","v":1489},{"$f":"AVERAGE(P7:P18)","v":8.3333333333333339},{"$f":"MAX(Q7:Q18)","v":26}]
[]
[null,null,null,null,null,null,null,null,null,null,{"$f":"+A6","v":2021},"mg/Nm3","95%ile 10-min avg maximum","Monthly CO 10-min avg mean","10-min avg maximum","Monthly daily mean","Monthly daily maximum"]
[null,null,null,null,null,null,null,null,null,null,"A2","Jan",29.98,23,468,23,29]
[null,null,null,null,null,null,null,null,null,null,null,"Feb",31.16,22,460,22,26]
[null,null,null,null,null,null,null,null,null,null,null,"Mar",26.77,19,318,19,33]
[null,null,null,null,null,null,null,null,null,null,null,"Apr",28.39,20,600,20,27]
[null,null,null,null,null,null,null,null,null,null,null,"May",21.31,14,269,14,20]
[null,null,null,null,null,null,null,null,null,null,null,"Jun",15.67,8,58,8,15]
[null,null,null,null,null,null,null,null,null,null,null,"Jul",10.3,7,207,7,9]
[null,null,null,null,null,null,null,null,null,null,null,"Aug",10.97,8,466,8,22]
[null,null,null,null,null,null,null,null,null,null,null,"Sep",15.72,11,231,11,14]
[null,null,null,null,null,null,null,null,null,null,null,"Oct",13.8,10,176,10,13]
[null,null,null,null,null,null,null,null,null,null,null,"Nov",15.33,10,135,10,15]
[null,null,null,null,null,null,null,null,null,null,null,"Dec",18.8,12,338,12,21]
[null,null,null,null,null,null,null,null,null,null,null,"Annual",{"$f":"AVERAGE(M22:M33)","v":19.850000000000001},{"$f":"AVERAGE(N22:N33)","v":13.666666666666666},{"$f":"MAX(O22:O33)","v":600},{"$f":"AVERAGE(P22:P33)","v":13.666666666666666},{"$f":"MAX(Q22:Q33)","v":33}]
[]
[null,null,null,null,null,null,null,null,null,null,{"$f":"+A6","v":2021},"mg/Nm3","95%ile 10-min avg maximum","Monthly CO 10-min avg mean","10-min avg maximum","Monthly daily mean","Monthly daily maximum"]
[null,null,null,null,null,null,null,null,null,null,"A3","Jan"]
[null,null,null,null,null,null,null,null,null,null,null,"Feb"]
[null,null,null,null,null,null,null,null,null,null,null,"Mar"]
[null,null,null,null,null,null,null,null,null,null,null,"Apr"]
[null,null,null,null,null,null,null,null,null,null,null,"May"]
[null,null,null,null,null,null,null,null,null,null,null,"Jun"]
[null,null,null,null,null,null,null,null,null,null,null,"Jul"]
[null,null,null,null,null,null,null,null,null,null,null,"Aug"]
[null,null,null,null,null,null,null,null,null,null,null,"Sep"]
[null,null,null,null,null,null,null,null,null,null,null,"Oct"]
[null,null,null,null,null,null,null,null,null,null,null,"Nov"]
["Comments :",null,null,null,null,null,null,null,null,null,null,"Dec"]
["Environment Agency explanatory note: The 10-minute average ELV is based on the “95th percentile”. In this case this means that 95% of the 10 minute averages in the relevant 24-hour period (i.e. 137) must be below 150 mg/Nm3, and 5% (i.e. 7) are allowed to be any value above 150 mg/Nm3. Whilst we expect operators to minimise CO emissions at all times, it is perfectly acceptable for the value of the maximum 10-minute average to be above 150 mg/Nm3, provided the 95th percentile ELV has been met for that period. ",null,null,null,null,null,null,null,null,null,null,"Annual",{"$f":"AVERAGE(M37:M48)","v":{"$error":"#DIV/0!"}},null,{"$f":"MAX(O37:O48)","v":0},{"$f":"AVERAGE(P37:P48)","v":{"$error":"#DIV/0!"}},{"$f":"MAX(Q37:Q48)","v":0}]
[]
[null,null,null,null,null,null,null,null,null,null,{"$f":"+A6","v":2021},"mg/Nm3","95%ile 10-min avg maximum","Monthly CO 10-min avg mean","10-min avg maximum","Monthly daily mean","Monthly daily maximum"]
[null,null,null,null,null,null,null,null,null,null,"A4","Jan"]
[null,null,null,null,null,null,null,null,null,null,null,"Feb"]
[null,null,null,null,null,null,null,null,null,null,null,"Mar"]
[null,null,null,null,null,null,null,null,null,null,null,"Apr"]
[null,null,null,null,null,null,null,null,null,null,null,"May"]
[null,null,null,null,null,null,null,null,null,null,null,"Jun"]
[null,null,null,null,null,null,null,null,null,null,null,"Jul"]
[null,null,null,null,null,null,null,null,null,null,null,"Aug"]
[null,null,null,null,null,null,null,null,null,null,null,"Sep"]
[null,null,null,null,null,null,null,null,null,null,null,"Oct"]
[null,null,null,null,null,null,null,null,null,null,null,"Nov"]
[null,null,null,null,null,null,null,null,null,null,null,"Dec"]
[null,null,null,null,null,null,null,null,null,null,null,"Annual",{"$f":"AVERAGE(M52:M63)","v":{"$error":"#DIV/0!"}},null,{"$f":"MAX(O52:O63)","v":0},{"$f":"AVERAGE(P52:P63)","v":{"$error":"#DIV/0!"}},{"$f":"MAX(Q52:Q63)","v":0}]
[]
[null,null,null,null,null,null,null,null,null,null,{"$f":"+A6","v":2021},"mg/Nm3","95%ile 10-min avg maximum","Monthly CO 10-min avg mean","10-min avg maximum","Monthly daily mean","Monthly daily maximum"]
[null,null,null,null,null,null,null,null,null,null,"A5","Jan"]
[null,null,null,null,null,null,null,null,null,null,null,"Feb"]
[null,null,null,null,null,null,null,null,null,null,null,"Mar"]
[null,null,null,null,null,null,null,null,null,null,null,"Apr"]
[null,null,null,null,null,null,null,null,null,null,null,"May"]
[null,null,null,null,null,null,null,null,null,null,null,"Jun"]
[null,null,null,null,null,null,null,null,null,null,null,"Jul"]
[null,null,null,null,null,null,null,null,null,null,null,"Aug"]
[null,null,null,null,null,null,null,null,null,null,null,"Sep"]
[null,null,null,null,null,null,null,null,null,null,null,"Oct"]
[null,null,null,null,null,null,null,null,null,null,null,"Nov"]
[null,null,null,null,null,null,null,null,null,null,null,"Dec"]
[null,null,null,null,null,null,null,null,null,null,null,"Annual",{"$f":"AVERAGE(M67:M78)","v":{"$error":"#DIV/0!"}},null,{"$f":"MAX(O67:O78)","v":0},{"$f":"AVERAGE(P67:P78)","v":{"$error":"#DIV/0!"}},{"$f":"MAX(Q67:Q78)","v":0}]

{"sheet":"NH3","index":20,"n_rows":79,"n_cols":17,"rows_kept":79,"cut":false,"hidden":false,"merged":[[3,16,7,18],[9,16,11,18],[12,16,15,18],[66,9,78,9],[4,1,4,3],[4,4,4,6],[4,9,4,14],[6,9,18,9],[21,9,33,9],[36,9,48,9],[47,0,47,6],[48,0,51,6],[51,9,63,9]]}
[{"$f":"+'Cover Page'!$B$29","v":"Annual Performance Report 2021"},null,null,null,{"$f":"+'Cover Page'!$B$33","v":"Stoke Energy from Waste Facility"}]
[]
["Monitoring of Ammnonia emissions ",null,null,"Whole Installation",null,null,"See  Notes in Cell Q3",null,null,{"$f":"+A3","v":"Monitoring of Ammnonia emissions "},null,null,null,"Per Combustion Line",null,null,"Notes:"]
[null,null,null,null,null,null,null,null,null,null,null,null,null,null,null,null,"User to add logic to complete Whole installation, Table A5:G18. From the data in Per Combustion Line, Table J6:O79, subject to No. of lines installed"]
["mg/Nm3","1/2 Hourly Reference Periods",null,null,"Daily Reference Periods"]
[{"$f":"+'Cover Page'!C39","v":2021},"1/2 hourly NH3 ELV","Monthly 1/2 hourly mean","Highest 1/2 hourly maximum","Daily NH3 ELV","Monthly daily mean","Highest daily maximum",null,null,{"$f":"+A6","v":2021},"mg/Nm3","Monthly 1/2 hourly mean","Monthly 1/2 hourly maximum","Monthly daily mean","Monthly daily maximum"]
["Jan",0,{"$f":"AVERAGE(L7,L22)","v":6},{"$f":"MAX(M7,M22)","v":82},10,{"$f":"AVERAGE(N7,N22)","v":6},{"$f":"MAX(O7,O22)","v":12},null,null,"A1","Jan",3,46,3,10]
["Feb",{"$f":"+B7","v":0},{"$f":"AVERAGE(L8,L23)","v":5},{"$f":"MAX(M8,M23)","v":48},{"$f":"+E7","v":10},{"$f":"AVERAGE(N8,N23)","v":5},{"$f":"MAX(O8,O23)","v":11},null,null,null,"Feb",2,19,2,4]
["Mar",{"$f":"+B8","v":0},4.5,37,{"$f":"+E8","v":10},4.5,14,null,null,null,"Mar",1,21,1,4,null,"Whole Installation table A5:G18:"]
["Apr",0,6.5,48,10,6.5,18,null,null,null,"Apr",1,7,1,2,null,"Mean: for 1/2 hourly and daily periods calculate mean of values across all operational combustion lines for the month"]
["May",0,6,47,10,6,10,null,null,null,"May",5,25,5,10]
["Jun",0,2,26,10,2,7,null,null,null,"Jun",2,26,2,3]
["Jul",0,1.5,33,10,1.5,4,null,null,null,"Jul",2,17,2,4,null,"Maximum: for 1/2 hourly and daily periods use the highest value across all operational combustion lines for the month"]
["Aug",0,2,78,10,2,8,null,null,null,"Aug",3,23,3,8]
["Sep",0,5.5,31,10,5.5,8,null,null,null,"Sep",4,12,4,7]
["Oct",0,6.5,32,10,6.5,13,null,null,null,"Oct",7,31,7,13]
["Nov",0,7,78,10,7,16,null,null,null,"Nov",10,78,10,16]
["Dec",0,7,39,10,7,16,null,null,null,"Dec",11,39,11,16]
[null,null,null,null,null,null,null,null,null,null,"Annual",{"$f":"AVERAGE(L7:L18)","v":4.25},{"$f":"MAX(M7:M18)","v":78},{"$f":"AVERAGE(N7:N18)","v":4.25},{"$f":"MAX(O7:O18)","v":16}]
[]
[null,null,null,null,null,null,null,null,null,{"$f":"+A6","v":2021},"mg/Nm3","Monthly 1/2 hourly mean","Monthly 1/2 hourly maximum","Monthly daily mean","Monthly daily maximum"]
[null,null,null,null,null,null,null,null,null,"A2","Jan",9,82,9,12]
[null,null,null,null,null,null,null,null,null,null,"Feb",8,48,8,11]
[null,null,null,null,null,null,null,null,null,null,"Mar",8,37,8,14]
[null,null,null,null,null,null,null,null,null,null,"Apr",12,48,12,18]
[null,null,null,null,null,null,null,null,null,null,"May",7,47,7,10]
[null,null,null,null,null,null,null,null,null,null,"Jun",2,18,2,7]
[null,null,null,null,null,null,null,null,null,null,"Jul",1,33,1,4]
[null,null,null,null,null,null,null,null,null,null,"Aug",1,78,1,3]
[null,null,null,null,null,null,null,null,null,null,"Sep",7,31,7,8]
[null,null,null,null,null,null,null,null,null,null,"Oct",6,32,6,8]
[null,null,null,null,null,null,null,null,null,null,"Nov",4,20,4,7]
[null,null,null,null,null,null,null,null,null,null,"Dec",3,28,3,10]
[null,null,null,null,null,null,null,null,null,null,"Annual",{"$f":"AVERAGE(L22:L33)","v":5.666666666666667},{"$f":"MAX(M22:M33)","v":82},{"$f":"AVERAGE(N22:N33)","v":5.666666666666667},{"$f":"MAX(O22:O33)","v":18}]
[]
[null,null,null,null,null,null,null,null,null,{"$f":"+A6","v":2021},"mg/Nm3","Monthly 1/2 hourly mean","Monthly 1/2 hourly maximum","Monthly daily mean","Monthly daily maximum"]
[null,null,null,null,null,null,null,null,null,"A3","Jan"]
[null,null,null,null,null,null,null,null,null,null,"Feb"]
[null,null,null,null,null,null,null,null,null,null,"Mar"]
[null,null,null,null,null,null,null,null,null,null,"Apr"]
[null,null,null,null,null,null,null,null,null,null,"May"]
[null,null,null,null,null,null,null,null,null,null,"Jun"]
[null,null,null,null,null,null,null,null,null,null,"Jul"]
[null,null,null,null,null,null,null,null,null,null,"Aug"]
[null,null,null,null,null,null,null,null,null,null,"Sep"]
[null,null,null,null,null,null,null,null,null,null,"Oct"]
[null,null,null,null,null,null,null,null,null,null,"Nov"]
["Comments :",null,null,null,null,null,null,null,null,null,"Dec"]
["An indicated ELV value of zero in the table above means that no ammonia limit is set in the permit.  ",null,null,null,null,null,null,null,null,null,"Annual",{"$f":"AVERAGE(L37:L48)","v":{"$error":"#DIV/0!"}},{"$f":"MAX(M37:M48)","v":0},{"$f":"AVERAGE(N37:N48)","v":{"$error":"#DIV/0!"}},{"$f":"MAX(O37:O48)","v":0}]
[]
[null,null,null,null,null,null,null,null,null,{"$f":"+A6","v":2021},"mg/Nm3","Monthly 1/2 hourly mean","Monthly 1/2 hourly maximum","Monthly daily mean","Monthly daily maximum"]
[null,null,null,null,null,null,null,null,null,"A4","Jan"]
[null,null,null,null,null,null,null,null,null,null,"Feb"]
[null,null,null,null,null,null,null,null,null,null,"Mar"]
[null,null,null,null,null,null,null,null,null,null,"Apr"]
[null,null,null,null,null,null,null,null,null,null,"May"]
[null,null,null,null,null,null,null,null,null,null,"Jun"]
[null,null,null,null,null,null,null,null,null,null,"Jul"]
[null,null,null,null,null,null,null,null,null,null,"Aug"]
[null,null,null,null,null,null,null,null,null,null,"Sep"]
[null,null,null,null,null,null,null,null,null,null,"Oct"]
[null,null,null,null,null,null,null,null,null,null,"Nov"]
[null,null,null,null,null,null,null,null,null,null,"Dec"]
[null,null,null,null,null,null,null,null,null,null,"Annual",{"$f":"AVERAGE(L52:L63)","v":{"$error":"#DIV/0!"}},{"$f":"MAX(M52:M63)","v":0},{"$f":"AVERAGE(N52:N63)","v":{"$error":"#DIV/0!"}},{"$f":"MAX(O52:O63)","v":0}]
[]
[null,null,null,null,null,null,null,null,null,{"$f":"+A6","v":2021},"mg/Nm3","Monthly 1/2 hourly mean","Monthly 1/2 hourly maximum","Monthly daily mean","Monthly daily maximum"]
[null,null,null,null,null,null,null,null,null,"A5","Jan"]
[null,null,null,null,null,null,null,null,null,null,"Feb"]
[null,null,null,null,null,null,null,null,null,null,"Mar"]
[null,null,null,null,null,null,null,null,null,null,"Apr"]
[null,null,null,null,null,null,null,null,null,null,"May"]
[null,null,null,null,null,null,null,null,null,null,"Jun"]
[null,null,null,null,null,null,null,null,null,null,"Jul"]
[null,null,null,null,null,null,null,null,null,null,"Aug"]
[null,null,null,null,null,null,null,null,null,null,"Sep"]
[null,null,null,null,null,null,null,null,null,null,"Oct"]
[null,null,null,null,null,null,null,null,null,null,"Nov"]
[null,null,null,null,null,null,null,null,null,null,"Dec"]
[null,null,null,null,null,null,null,null,null,null,"Annual",{"$f":"AVERAGE(L67:L78)","v":{"$error":"#DIV/0!"}},{"$f":"MAX(M67:M78)","v":0},{"$f":"AVERAGE(N67:N78)","v":{"$error":"#DIV/0!"}},{"$f":"MAX(O67:O78)","v":0}]